Cogmind - Beta 16 @@@ ROGUE MODE // 2025.11.25 @ 02:08:04 Player: Naughtyusername Result: Assimilated 0b10! Performance ------------- Evolutions (9) 4500 Regions Visited (29) 5800 Robots Destroyed (511) 2555 Value Destroyed (30909) 30909 Prototype IDs (53) 1060 Alien Tech Used (5) 1000 Bonus (39343) 39343 TOTAL SCORE: 85167 Bonus ------- High Alert Combat Kills 6924 Follower Combat Kills 10171 Destroyed Unchained 1000 Entered Garrisons 1800 Used RIF Installer 6000 Network Hubs Disabled 200 Built Enhanced Grunts 300 A7 Reached Mainframe 300 Met R17 at Cetus 500 Met R17 at Research 2000 Destroyed MAIN.C Guards 500 Met MAIN.C 5000 Used 0b10 Conduit 2000 Win 3000 Friendly Fire -352 Cogmind --------- Core Integrity 952/1600 Matter 290/300 Energy 99/100 System Corruption 32% Temperature Cool (0) Movement Core (50) Location 0b10 Command Parts ------- > --- POWER (3) -------- (None) > --- PROPULSION (6) --- (None) > --- UTILITY (13) ----- (None) > --- WEAPON (3) ------- (None) > --- INVENTORY (5) ---- Armored Heavy Treads Enhanced Biometal Leg Sigix Broadsword Peak State ------------ > --- POWER ------------ Reinforced Antimatter Reactor Reinforced Quantum Reactor Reinforced Quantum Reactor > --- PROPULSION ------- Armored Heavy Treads Improved Heavy Siege Treads Advanced Heavy Siege Treads > --- UTILITY ---------- Advanced Cooling System Huge Storage Unit Quantum Capacitor Centrium Medium Armor Plating Graphene Brace Advanced Force Field Relay Coupler [NC] Relay Coupler [Proto] Relay Coupler [Proto] Relay Coupler [Proto] Relay Coupler [Proto] Relay Coupler [Proto] > --- WEAPON ----------- Enhanced Nova Cannon Sigix Broadsword > --- INVENTORY -------- Reinforced Quantum Reactor Reinforced Quantum Reactor Reinforced Quantum Reactor Armored Heavy Treads Armored Heavy Treads Armored Heavy Treads Enhanced Biometal Leg Enhanced Biometal Leg Advanced Heat Sink Improved Matter Compressor Experimental Targeting Computer Centrium Light Armor Plating Advanced Point Defense System Advanced Point Defense System Dimensional Node Initializer Subatomic Replicator Compact HERF Cannon Hellfire Missile Launcher Ragnarok Missile Launcher Advanced Remote Datajack Advanced Remote Datajack Improved Plasma Cutter [Rating: 224] Favorites ----------- Power Quantum Reactor Engine Heavy Ion Engine Power Core Reinforced Fission Core Reactor Quantum Reactor Propulsion Light Treads Treads Light Treads Leg Enhanced Flexi-carbon Leg Utility Huge Storage Unit Device Advanced Cooling System Storage Huge Storage Unit Processor Core Analyzer Hackware Relay Coupler [Sentry] Protection Layered Heavy Armor Plating Weapon Advanced KE Penetrator Energy Gun Gatling Laser Energy Cannon Compact HERF Cannon Ballistic Gun Advanced KE Penetrator Ballistic Cannon Heavy Linear Accelerator Launcher Heavy Missile Launcher Special Weapon Remote Datajack Impact Weapon Powered Hammer Slashing Weapon Sigix Broadsword Build | -11 -10 -10 -9 -9 -8 -8 -8 -8 -7 -7 -6 -6 -5 -5 -5 -5 -5 -5 -4 -4 -3 -3 -3 -2 -2 -1 -1 -1 -1 ------- Run | Yrd Mat Min Mat Min Mat Gar Mat Gar Fac Gar Fac Gar Fac Gar Ext Cet Arc Hub Fac Gar Res Qua Gar Res Gar Acc Gar Acc Com Slots Evolved 18 | . . . 2 . 2 . . . 2 . 2 . 2 . . . . . 2 . 2 . . 2 . 2 . . . Power 2 | . . . . . . . . . . . . . . . . . . . 1 . . . . 1 . . . . . Propulsion 4 | . . . . . 1 . . . 1 . . . 2 . . . . . . . . . . . . . . . . Utility 11 | . . . 1 . 1 . . . 1 . 2 . . . . . . . 1 . 2 . . 1 . 2 . . . Weapon 1 | . . . 1 . . . . . . . . . . . . . . . . . . . . . . . . . . Parts Attached 348 | 7 5 1 19 1 23 16 14 12 14 16 12 22 1 9 10 7 . 7 8 12 8 23 19 17 19 5 12 13 16 Power 37 | 1 1 . 3 . 1 1 1 . 1 . 1 1 . 1 . 1 . . 1 1 2 5 2 3 3 2 1 3 1 Engine 11 | 1 1 . 3 . 1 1 1 . 1 . 1 1 . . . . . . . . . . . . . . . . . Core 4 | . . . . . . . . . . . . . . 1 . . . . . . . . 1 1 . . . 1 . Reactor 22 | . . . . . . . . . . . . . . . . 1 . . 1 1 2 5 1 2 3 2 1 2 1 Propulsion 66 | 2 . . 4 . 10 6 4 4 1 4 . 2 1 . . 1 . 2 1 3 1 4 4 2 4 . . 3 3 Treads 65 | 2 . . 4 . 10 6 4 4 1 4 . 2 1 . . 1 . 1 1 3 1 4 4 2 4 . . 3 3 Leg 1 | . . . . . . . . . . . . . . . . . . 1 . . . . . . . . . . . Wheel . | . . . . . . . . . . . . . . . . . . . . . . . . . . . . . . Hover . | . . . . . . . . . . . . . . . . . . . . . . . . . . . . . . Flight . | . . . . . . . . . . . . . . . . . . . . . . . . . . . . . . Utility 175 | 2 2 1 3 . 4 6 7 5 10 8 7 13 . 7 9 1 . 3 6 7 5 9 10 9 11 3 10 5 12 Device 49 | 1 1 1 1 . 2 2 . 1 1 2 . 3 . 1 3 . . 2 1 2 3 6 3 3 3 . 2 4 1 Storage 8 | 1 1 . . . . 1 . . . . . . . . 1 . . . . . . . . 1 1 1 . . 1 Processor 6 | . . . . . . . . . . . . 1 . 1 . . . 1 1 . . . . 1 . . . . 1 Hackware 82 | . . . . . . . 5 4 6 4 5 8 . 5 4 . . . 3 5 1 1 7 4 4 2 7 . 7 Protection 30 | . . . 2 . 2 3 2 . 3 2 2 1 . . 1 1 . . 1 . 1 2 . . 3 . 1 1 2 Artifact . | . . . . . . . . . . . . . . . . . . . . . . . . . . . . . . Weapon 70 | 2 2 . 9 1 8 3 2 3 2 4 4 6 . 1 1 4 . 2 . 1 . 5 3 3 1 . 1 2 . Energy Gun 2 | 1 . . . . . . . . . 1 . . . . . . . . . . . . . . . . . . . Energy Cannon 7 | . . . . . . . . . . 1 1 . . . . . . . . . . 1 1 1 1 . . 1 . Ballistic Gun 34 | 1 2 . 7 . 6 2 1 3 1 1 . 3 . . . 3 . 2 . 1 . 1 . . . . . . . Ballistic Cannon 4 | . . . . . . . . . . . 2 1 . 1 . . . . . . . . . . . . . . . Launcher 9 | . . . 1 1 . 1 . . . 1 1 . . . . . . . . . . 1 . 2 . . . 1 . Special Weapon 9 | . . . . . . . 1 . 1 . . 2 . . 1 1 . . . . . 1 1 . . . 1 . . Impact Weapon 4 | . . . 1 . 2 . . . . . . . . . . . . . . . . 1 . . . . . . . Slashing Weapon 1 | . . . . . . . . . . . . . . . . . . . . . . . 1 . . . . . . Piercing Weapon . | . . . . . . . . . . . . . . . . . . . . . . . . . . . . . . Special Melee Weapon . | . . . . . . . . . . . . . . . . . . . . . . . . . . . . . . Unidentified Prototypes 32 | . . . . . 1 . . . . 1 1 . . . 1 2 . 4 1 . 1 7 1 6 1 1 . 1 3 Corrupted Parts 3 | . . . . . . . . . . 1 . . . . . . . 1 . . . . . . . . . . 1 System Corruption 10 | . . . . . . . . . . 5 . . . . . . . 3 . . . . . . . . . . 2 Parts Lost 76 | . . . . . 6 8 1 3 3 5 . 8 . . . . . 2 . 4 . 8 3 8 5 . 3 3 6 Power 8 | . . . . . . 1 . . 1 . . 1 . . . . . . . . . 2 . 1 1 . . 1 . Propulsion 22 | . . . . . . 3 . 2 1 3 . 2 . . . . . 1 . 1 . 3 2 . 1 . . 1 2 Utility 35 | . . . . . 3 2 1 . . 1 . 4 . . . . . 1 . 2 . 3 . 7 3 . 3 1 4 Weapon 11 | . . . . . 3 2 . 1 1 1 . 1 . . . . . . . 1 . . 1 . . . . . . Highest Loss Streak 4 | . . . . . 2 4 1 2 2 2 . 3 . . . . . 2 . 1 . 4 2 3 3 . 2 2 4 To Critical Strikes 3 | . . . . . . . . . . . . 1 . . . . . . . 1 . . . . 1 . . . . Average Backups 21 | 1 8 13 14 15 14 21 24 24 23 24 22 22 21 22 21 21 22 22 21 23 24 22 24 22 24 24 24 23 20 Power . | . . 1 1 1 1 . 1 1 . 1 1 . 1 1 1 1 1 1 . . 1 . . . . . . . 2 Propulsion 1 | . 2 4 4 5 5 4 3 2 1 . 2 . . . 1 2 1 1 . . 1 . . . . . . 1 3 Utility 11 | . 3 4 5 4 2 9 12 15 13 14 10 12 12 14 12 10 10 10 10 12 14 10 13 10 12 17 17 14 7 Weapon 5 | . 2 3 3 3 4 4 5 4 5 6 7 6 5 5 4 5 7 8 8 6 5 6 5 6 7 4 3 3 3 Tool/Special . | . . . . . . . . . . . . . . . . . . . . . . . . . . . . . . Unused Backups 93 | . 2 . 7 1 2 2 4 3 1 15 1 11 . 14 . 3 . . . 2 3 3 1 . 3 . 6 . 9 Power 8 | . . . 1 . 2 . . . 1 . . 1 . 1 . . . . . . . . . . . . . . 2 Propulsion 9 | . . . 2 . . . . . . . . . . . . 3 . . . . . . . . . . 1 . 3 Utility 54 | . . . 1 1 . 2 2 3 . 14 . 8 . 10 . . . . . 1 . 2 1 . 3 . 4 . 2 Weapon 18 | . 2 . 3 . . . 1 . . 1 1 2 . 3 . . . . . 1 2 1 . . . . 1 . . Tool/Special 4 | . . . . . . . 1 . . . . . . . . . . . . . 1 . . . . . . . 2 Average Slot Usage (%) 86 | . 91 98 99 100 99 96 98 99 98 97 83 79 70 69 69 78 82 81 77 83 89 92 79 78 73 75 75 77 75 Engine 4 | . 14 14 11 11 9 8 9 9 6 7 6 6 5 . . . . . . . . . . . . . . . . Core 1 | . . . . . . . . . . . . . . 4 5 2 . . . . . . 2 4 5 1 . . . Reactor 3 | . . . . . . . . . . . . . . . . 2 5 5 10 10 9 9 6 7 6 10 12 11 11 Treads 19 | . 28 28 22 22 27 26 27 26 28 28 13 12 17 17 17 17 17 17 15 20 23 21 16 13 12 12 12 11 11 Device 10 | . 6 12 13 20 14 13 2 6 . . 6 6 5 4 5 17 17 14 . 3 6 13 11 10 20 20 16 14 16 Storage 6 | . 14 14 11 11 9 9 9 9 7 7 6 6 5 5 5 5 5 5 5 5 4 4 4 4 4 4 4 4 4 Processor 1 | . . . . . . . . . . . . . . . . . . 1 9 10 9 9 9 7 . . . . . Hackware 13 | . . . . . . . 11 10 25 22 27 20 17 17 15 11 11 11 14 11 16 11 11 16 10 15 19 23 20 Protection 5 | . . . 8 1 12 11 11 9 4 6 1 6 5 5 5 5 5 5 4 5 4 5 4 2 3 4 3 3 2 Ballistic Gun 11 | . 25 28 32 33 26 25 24 21 16 14 3 3 . . . 6 13 16 10 12 12 12 1 1 . . . . . Special Weapon 1 | . . . . . . . 1 1 3 2 3 1 1 1 4 1 . . 4 1 1 . 2 . 2 4 2 2 1 Impact Weapon 1 | . . . . . . 1 1 4 2 3 1 4 3 3 . 3 2 . . 1 . . . . . . . . . Slashing Weapon 1 | . . . . . . . . . . . . . . . . . . . . . . . 3 3 3 4 3 3 3 Peak Build Rating 224 | 7 8 8 17 17 30 37 39 41 46 72 79 87 101 108 112 123 123 124 133 131 141 154 165 177 187 188 201 201 224 Average Rating 97 | 5 7 7 14 16 22 31 35 38 43 49 75 81 101 106 106 118 121 121 126 118 133 144 154 165 177 186 193 192 198 On Entrance 91 | . 7 7 8 17 16 30 35 35 41 43 72 76 87 101 108 110 123 123 119 123 116 141 141 159 163 180 188 195 195 Avg Prop Armor Cover (%) 7 | . . . . . . . . . . . . . . . . . . . . . . . . 7 . . . 6 10 Naked Turns 22 | . . . . . . . . . . . . . . . . . . . . . . . . . . . . . 22 Heaviest Build 219 | 13 30 30 43 43 53 109 108 111 110 114 117 136 136 153 154 141 128 129 158 164 164 165 150 171 188 186 217 216 219 Greatest Support 230 | 40 40 40 40 40 60 62 60 60 80 150 150 150 210 210 210 210 205 210 210 184 196 196 225 225 230 215 215 230 230 Greatest Overweight (x) 2 | . . . 1 1 . 2 1 2 1 1 . . . . . . . . . 1 . 1 1 1 1 . 1 1 1 Average Overweight (x) . | . . . . . . . 1 1 1 . . . . . . . . . . . . . . . . . . . . Largest Inventory Capacity 25 | 8 15 15 15 15 15 25 25 25 25 25 25 25 25 25 25 25 25 25 25 25 25 25 25 25 25 25 25 25 25 Average Capacity 23 | 7 11 15 15 15 15 24 25 25 25 25 25 25 25 25 25 25 25 25 25 25 25 25 25 25 25 25 25 25 24 Most Carried 25 | 3 13 14 15 15 15 25 25 25 25 25 25 25 23 25 25 25 25 25 25 25 25 25 25 25 25 25 25 25 25 Average Carried 22 | 2 8 13 14 14 14 21 24 24 23 24 24 24 23 24 24 24 25 24 22 24 24 24 24 22 24 24 24 24 23 Final Capacity 25 | 8 15 15 15 15 15 25 25 25 25 25 25 25 25 25 25 25 25 25 25 25 25 25 25 25 25 25 25 25 5 Final Carried 25 | 3 13 14 15 15 15 25 25 25 23 25 25 25 23 25 25 25 25 23 24 25 25 25 25 25 25 25 25 25 5 Class Distribution -------------------- 38% | Botlord-Mutant 20% | Botlord-Tank 10% | Scavenger-Tank 6% | Mutant 6% | Bothacker-Tank 4% | Commander-Tank 3% | Bothacker-Mutant Dominant Class ---------------- Mutant | -10/Materials Mutant | -10/Mines Scavenger-Tank | -9/Materials Scavenger-Gunner | -9/Mines Scavenger-Tank | -8/Materials Scavenger-Tank | -8/Garrison Bothacker-Tank | -8/Materials Bothacker-Mutant | -8/Garrison Bothacker-Tank | -7/Factory Botlord-Mutant | -7/Garrison Botlord-Tank | -6/Factory Botlord-Mutant | -6/Garrison Botlord-Mutant | -5/Factory Botlord-Mutant | -5/Garrison Commander-Tank | -5/Extension Commander-Mutant | -5/Cetus Commander-Mutant | -5/Archives Commander-Tank | -5/Hub_04(d) Botlord-Tank | -4/Factory Botlord-Tank | -4/Garrison Botlord-Tank | -3/Research Botlord-Tank | -3/Quarantine Botlord-Mutant | -3/Garrison Botlord-Mutant | -2/Research Botlord-Mutant | -2/Garrison Botlord-Mutant | -1/Access Botlord-Mutant | -1/Garrison Botlord-Mutant | -1/Access Botlord-Mutant | -1/Command Resources | -11 -10 -10 -9 -9 -8 -8 -8 -8 -7 -7 -6 -6 -5 -5 -5 -5 -5 -5 -4 -4 -3 -3 -3 -2 -2 -1 -1 -1 -1 ----------- Run | Yrd Mat Min Mat Min Mat Gar Mat Gar Fac Gar Fac Gar Fac Gar Ext Cet Arc Hub Fac Gar Res Qua Gar Res Gar Acc Gar Acc Com Matter Collected 22070 | 294 156 168 646 112 1310 1361 1100 775 586 1127 442 1393 . 200 1091 189 88 574 321 839 311 2019 1229 1377 997 489 863 1170 843 Remotely 2440 | . . . . . . . . . 224 . 112 373 . . 393 . . . . . . 466 80 384 121 . . 287 . Salvage Created 24495 | 120 377 78 958 115 1835 1734 892 343 181 1261 288 1108 . . 550 53 . 1983 232 1443 374 2317 1281 1930 1674 94 1337 1145 792 Parts 1172 | 16 24 5 61 10 109 94 40 30 12 58 13 40 . . 11 4 . 75 12 51 20 118 50 101 72 . 47 56 43 Haulers Intercepted 16 | . 2 . 3 . 4 . 3 . . . . . . . 1 . . 2 . . 1 . . . . . . . . Recyclers Shooed 12 | . . . 3 . 3 . . . . . 1 . 1 . . . . . . . . . . 4 . . . . . Parts Field Recycled . | . . . . . . . . . . . . . . . . . . . . . . . . . . . . . . Retrieved Matter . | . . . . . . . . . . . . . . . . . . . . . . . . . . . . . . Parts Self-Destructed . | . . . . . . . . . . . . . . . . . . . . . . . . . . . . . . Prevented . | . . . . . . . . . . . . . . . . . . . . . . . . . . . . . . Parts Restored . | . . . . . . . . . . . . . . . . . . . . . . . . . . . . . . Kills | -11 -10 -10 -9 -9 -8 -8 -8 -8 -7 -7 -6 -6 -5 -5 -5 -5 -5 -5 -4 -4 -3 -3 -3 -2 -2 -1 -1 -1 -1 ------- Run | Yrd Mat Min Mat Min Mat Gar Mat Gar Fac Gar Fac Gar Fac Gar Ext Cet Arc Hub Fac Gar Res Qua Gar Res Gar Acc Gar Acc Com Combat Hostiles Destroyed 412 | . 8 4 19 4 36 38 16 12 5 22 7 31 . . 5 1 . 5 5 19 2 33 17 23 22 1 41 24 12 Melee 7 | . . . . . . . . . . . . 1 . . . . . . . . . . 1 1 . 1 2 . 1 Guns 222 | . 8 4 16 2 29 32 14 8 5 11 3 23 . . . 1 . 5 5 18 2 26 4 6 . . . . . Cannons 51 | . . . . . . . . . . . 1 7 . . 5 . . . . . . 1 3 9 6 . 2 9 8 AOE 107 | . . . 3 2 7 6 2 4 . 11 3 . . . . . . . . . . 5 8 3 8 . 33 12 . Classes Destroyed 21 | 2 4 1 3 . 1 2 . . 2 1 . 2 . . . . . . . . . 1 . 1 . . . 1 . Worker 24 | . . . 2 . 4 . 2 . 1 . 1 . 1 . . . . 4 . . 1 . . 6 . . . 2 . Builder 9 | . . . . . . . . . 1 . 1 . . . . . . 3 . . . . . 4 . . . . . Tunneler 4 | 4 . . . . . . . . . . . . . . . . . . . . . . . . . . . . . Hauler 16 | . 2 . 3 . 4 . 3 . . . . . . . 1 . . 2 . . 1 . . . . . . . . Recycler 15 | 1 1 1 2 . 1 . 1 . . . 1 . . . 2 . . 2 . . 1 . . 1 . . . 1 . Operator 7 | . 1 . 2 . 1 . . . . . . . . . . . . 1 . . . 2 . . . . . . . Drone 4 | . . . . . . . . . . . . . . . . . . . . . . . . . . . . 4 . Watcher 9 | . . . 1 . 2 . 1 . . . . . . . 1 . . . . . 1 2 . . . . . . 1 Swarmer 131 | . 4 2 7 2 8 9 2 4 . 16 3 8 . . . . . . 2 7 . 5 12 3 9 . 24 4 . Cutter 7 | . . . . . . . . . . . . . . . . . . . . . . . . 2 2 . . 3 . Grunt 139 | . 4 . 7 2 18 23 10 3 2 2 . 15 . . 1 . . 2 . 7 . 7 2 8 5 1 15 5 . Brawler 9 | . . . . . 2 1 1 . . . . . . . . . . 3 . . . 1 . . . . 1 . . Duelist 3 | . . . . . . 1 . . . . . . . . . . . . . . . 1 . . . . 1 . . Sentry 44 | . . . 5 . 8 4 3 2 . . 3 5 . . 1 . . 6 . 4 . 2 1 . . . . . . Specialist 6 | . . . . . . . . . . 2 . . . . . . . . . . . 3 . . 1 . . . . Hunter 15 | . . . . . . . . . . . . 1 . . . . . 3 . . . 2 1 3 3 . . . 2 Programmer 53 | . . . . . . 1 . 3 2 2 1 1 . . 1 . . . 3 2 2 11 . 8 2 . . 7 7 Heavy 2 | . . . . . . . . . 1 . . . . . . . . . . . . . . . . . . 1 . Behemoth 4 | . . . . . . . . . . . . 1 . . 1 . . . . . . . 1 . . . . . 1 Cetus Guard 1 | . . . . . . . . . . . . . . . . 1 . . . . . . . . . . . . . Enhanced Grunt 1 | . . . . . . . . . . . . . . . . . . 1 . . . . . . . . . . . Combat Programmer 2 | . . . . . . . . . . . . . . . . . . . . . . . . . . . . . 2 Alpha 7 1 | . . . . . . . . . . . . . . . . . . . . . . 1 . . . . . . . Assembled 2 | . . 2 . . . . . . . . . . . . . . . . . . . . . . . . . . . Thug 1 | . . . . . . . . . . . . . . . 1 . . . . . . . . . . . . . . Savage 1 | . . . . . . . . . . . . . . . . . . 1 . . . . . . . . . . . Guerrilla 2 | . . . . . . . . . . . . . . . . . . 2 . . . . . . . . . . . Infiltrator 1 | . . . . . . . . . . . . . . . . . . 1 . . . . . . . . . . . Best Kill Streak 16 | 5 4 2 6 2 10 6 6 3 4 4 4 5 1 . 3 1 . 9 3 6 2 5 6 7 8 1 16 7 4 Combat Bots Only 16 | . 3 2 5 2 7 6 4 3 2 4 3 5 . . 3 1 . 3 3 6 2 5 6 6 8 1 16 7 4 Max Kills in Single Turn 10 | 1 1 1 3 2 3 3 3 3 1 3 3 2 1 . 1 1 . 10 2 2 2 2 3 6 4 1 6 3 1 Gunslinging 1 | . . . 1 . . 1 . . . . . 1 . . . . . . . . . . . . . . . . . Exploded 6 | . . . 3 2 2 3 2 3 . 3 2 . . . . . . . . . . 2 3 3 4 . 6 3 . Melee 1 | . . . . . . . . . . . . 1 . . . . . . . . . . 1 1 . 1 1 . 1 Uniques/NPCs Destroyed 1 | . . . . . . . . . . . . . . . . . . . . . . . . 1 . . . . . DW-4LL (-2/Research) Combat | -11 -10 -10 -9 -9 -8 -8 -8 -8 -7 -7 -6 -6 -5 -5 -5 -5 -5 -5 -4 -4 -3 -3 -3 -2 -2 -1 -1 -1 -1 -------- Run | Yrd Mat Min Mat Min Mat Gar Mat Gar Fac Gar Fac Gar Fac Gar Ext Cet Arc Hub Fac Gar Res Qua Gar Res Gar Acc Gar Acc Com Hostile Shots Fired 2630 | . 35 26 66 11 153 154 74 46 63 93 79 298 5 . 37 14 3 61 20 80 6 213 108 269 141 9 191 148 227 Missed 755 | . 18 4 19 4 45 31 23 8 26 24 32 99 . . 11 4 . 13 6 18 . 62 30 82 39 3 52 37 65 Hits 1875 | . 17 22 47 7 108 123 51 38 37 69 47 199 5 . 26 10 3 48 14 62 6 151 78 187 102 6 139 111 162 Melee 45 | . . . . . 3 7 . . . . . . . . . . . . . . . 10 . 11 8 . . 6 . Projectile 1830 | . 17 22 47 7 105 116 51 38 37 69 47 199 5 . 26 10 3 48 14 62 6 141 78 176 94 6 139 105 162 AOE 14 | . . . . . . . . . 2 . . . . . . . . . . . . . . . 1 . . 10 1 Critical Strikes 123 | . . 1 1 . 8 8 3 1 5 4 1 4 . . 1 2 . 1 . 4 1 12 2 13 13 . 8 16 14 Actively Blocked 55 | . . . . . . . . . . . . . . . . 2 . 1 . . . 4 . 10 9 . 4 15 10 Part Disruptions 14 | . . . . . . . . . . . . . . . . . . . . . . 2 1 3 . . . 2 6 Damage Taken 32502 | . 153 228 589 118 1405 1554 835 494 887 1065 448 2844 75 . 451 141 85 1515 291 1135 104 2643 1291 3448 2169 301 1967 2290 3976 Core 2367 | . 20 51 97 . 149 213 98 18 57 124 63 216 . . 58 14 . 18 . 72 . 206 97 113 35 . 88 49 511 Absorbed by Shields 8649 | . . . . . 258 374 . . . . . 127 . . 127 97 . . . 271 37 962 461 1058 406 . 1448 1765 1258 Reduced by Siege Mode 30 | . . . . . . . . . . . . 23 . . . . . . . . . 7 . . . . . . . Redirected to Shielding 122 | . . . . . . 9 25 7 . . . . . . . . . . . . . 81 . . . . . . . Ignored by Resistances 205 | . . . . . . . . . . . . . . . . 39 25 84 . . . 57 . . . . . . . Regen/Repaired (Parts) 4658 | . . . . . . . . . . . . . . . . . . . . . 215 . 402 1000 1090 18 669 839 425 Core Remaining (%) 72 | 100 . 71 . 75 . . . 13 . 74 . 67 . . . . . 91 . 93 . . 76 . 78 . . . 59 Volleys Fired 1554 | 8 32 13 47 6 104 98 69 38 53 76 37 95 1 22 68 9 6 32 22 54 18 106 70 130 87 15 52 99 87 Largest 3 | 2 2 2 3 3 3 3 3 3 3 3 3 3 1 1 1 2 3 3 3 3 3 3 3 3 1 1 1 1 1 Hottest 168 | 70 70 40 69 69 76 86 89 81 84 141 168 165 5 70 70 70 105 105 105 105 100 110 110 113 113 10 94 120 120 Shots Fired 2809 | 16 64 26 137 14 291 286 175 74 72 114 51 189 1 22 68 12 18 94 38 128 33 280 92 181 84 15 52 99 83 Gun 1966 | 16 64 26 136 12 284 283 158 57 34 101 10 123 . . . 6 18 93 25 113 26 264 37 80 . . . . . Cannon 402 | . . . . . . . . . . 2 16 44 . 1 23 6 . . . . . 9 23 77 53 . 27 57 64 Launcher 51 | . . . 1 2 7 3 1 2 . 5 2 . . . . . . . . . . 3 3 1 3 . 11 7 . Special 390 | . . . . . . . 16 15 38 6 23 22 1 21 45 . . 1 13 15 7 4 29 23 28 15 14 35 19 Kinetic 1954 | 8 54 26 136 12 284 283 158 57 34 88 16 106 . 1 23 12 18 93 25 113 26 264 37 80 . . . . . Thermal 284 | 8 10 . . . . . . . . 15 10 61 . . . . . . . . . . . 53 21 . . 50 56 Explosive 51 | . . . 1 2 7 3 1 2 . 5 2 . . . . . . . . . . 3 3 1 3 . 11 7 . Electromagnetic 130 | . . . . . . . . . . . . . . . . . . . . . . 9 23 24 32 . 27 7 8 Robot Hit Streak 36 | 7 6 6 26 3 23 36 10 9 11 20 24 17 . 7 14 8 5 13 9 26 31 11 11 14 13 3 12 14 9 Robot Miss Streak 10 | 1 3 3 3 1 4 3 10 7 5 8 5 5 1 2 3 1 2 4 4 3 3 4 2 3 3 1 3 2 3 Penetration Max 1 | . . . . . . . . . . 1 . . . . . . 1 1 1 1 1 1 1 1 . . . . . Secondary Targets 39 | . 2 . 4 . 1 9 2 1 . 1 . 6 . . . . . 3 1 3 . 5 . 1 . . . . . Max Gunslinging Chain 1 | . 1 . 1 . 1 1 1 1 . 1 . 1 . . . . . 1 1 1 . 1 . 1 . . . . . Capacitor 301 | . . . . . . . . . . . . . . . . . . . . . . . 23 77 53 . 27 57 64 Shots Hit Robots 1987 | 12 36 16 95 8 213 196 116 53 51 98 39 163 . 15 50 10 13 63 22 94 20 159 62 126 70 7 49 70 61 Core Hits 1096 | 6 18 7 44 6 99 84 79 35 32 91 25 162 . . 9 1 4 55 8 44 9 84 25 55 27 1 44 27 15 Critical Kills 37 | . . . 1 . . 1 . . . . . . . . . 1 . 4 . 7 3 11 2 4 . . . 2 1 Critical Parts Destroyed 58 | . . 2 1 . . 1 1 1 . 1 . . . . . . 1 9 1 7 2 15 4 12 . . . . . Critical Strikes 108 | . . 2 2 . 1 2 1 1 . 1 . . . . 3 2 1 13 1 15 5 27 7 17 2 . 1 3 1 Meltdown 4 | . . . . . . . . . . . . . . . . . . . . . . . . 1 . . . 2 1 Destroy 95 | . . 2 2 . 1 2 1 1 . 1 . . . . . 1 1 13 1 15 5 27 7 15 . . . . . Blast 4 | . . . . . . . . . . . . . . . 3 1 . . . . . . . . . . . . . Corrupt 3 | . . . . . . . . . . . . . . . . . . . . . . . . 1 1 . . 1 . Sever 2 | . . . . . . . . . . . . . . . . . . . . . . . . . 1 . 1 . . Melee Attacks 301 | . . . 3 . 3 12 9 33 15 37 7 41 1 5 10 20 16 . . 7 . 5 9 23 14 2 18 7 4 Impact 224 | . . . 3 . 3 12 9 33 15 37 7 41 1 5 10 20 16 . . 7 . 5 . . . . . . . Slashing 77 | . . . . . . . . . . . . . . . . . . . . . . . 9 23 14 2 18 7 4 Piercing . | . . . . . . . . . . . . . . . . . . . . . . . . . . . . . . Sneak Attacks 10 | . . . . . . 1 1 . . . 1 . . . 1 . . . . . . . 1 3 . . . 2 . Combat Hostiles . | . . . . . . . . . . . . . . . . . . . . . . . . . . . . . . Follow-up Attacks . | . . . . . . . . . . . . . . . . . . . . . . . . . . . . . . Damage Inflicted 63172 | 149 511 231 1727 349 3788 3810 2099 1068 557 3236 1193 3464 90 . 1427 583 390 3672 577 2490 648 5437 2175 4893 4383 74 7609 4024 2518 Guns 28885 | 149 503 197 1419 105 3081 3098 1774 699 529 2145 222 2270 . . . 128 390 2035 577 2258 546 4532 430 1798 . . . . . Cannons 12178 | . . . . . . . . . . . 491 1105 . . 1195 455 . . . . . 241 507 1630 1654 . 767 1793 2340 Explosions 16110 | . . . 290 244 660 588 255 369 . 912 352 . . . . . . 1582 . . . 631 565 401 1504 . 6056 1701 . Melee 5169 | . . . . . . 95 48 . . 179 128 42 . . 124 . . . . 185 . . 673 1050 1225 59 786 435 140 Ramming 830 | . 8 34 18 . 47 29 22 . 28 . . 47 90 . 108 . . 55 . 47 102 33 . 14 . 15 . 95 38 Kinetic 30185 | 76 428 197 1419 105 3081 3098 1774 699 529 1920 491 2024 . . 1195 583 390 2035 577 2258 546 4532 430 1798 . . . . . Thermal 7115 | 73 75 . . . . . . . . 225 222 1351 . . . . . . . . . . . 911 561 . . 1579 2118 Explosive 14439 | . . . 290 244 660 588 166 369 . 912 352 . . . . . . . . . . 631 565 401 1504 . 6056 1701 . Electromagnetic 5434 | . . . . . . . 89 . . . . . . . . . . 1582 . . . 241 507 719 1093 . 767 214 222 Impact 801 | . . . . . . 95 48 . . 179 128 42 . . 124 . . . . 185 . . . . . . . . . Slashing 4368 | . . . . . . . . . . . . . . . . . . . . . . . 673 1050 1225 59 786 435 140 Piercing . | . . . . . . . . . . . . . . . . . . . . . . . . . . . . . . Highest Corruption 32 | . . . . . . . . 2 1 7 . . . . . . . 12 2 2 2 30 31 14 15 . . 5 32 Average Corruption 9 | . . . . . . . . 1 1 1 . . . . . . . 3 1 2 1 14 30 5 14 . . 3 12 Corruption Purged . | . . . . . . . . . . . . . . . . . . . . . . . . . . . . . . Corruption Blocked . | . . . . . . . . . . . . . . . . . . . . . . . . . . . . . . Effects 373 | . . . . . . . . 18 . 19 . . . . . . . 2 3 18 5 75 64 41 77 . . 12 39 Message Errors 91 | . . . . . . . . 7 . 3 . . . . . . . . . 9 3 18 15 10 13 . . 4 9 Matter Fused 90 | . . . . . . . . 5 . 2 . . . . . . . 1 1 4 . 20 13 11 21 . . 6 6 Heat Flow Errors 46 | . . . . . . . . . . 4 . . . . . . . . 1 1 . 6 7 6 13 . . 1 7 Energy Discharges 41 | . . . . . . . . 4 . 3 . . . . . . . . . 1 1 7 8 4 6 . . . 7 Parts Rejected 7 | . . . . . . . . . . . . . . . . . . . . . . . 4 1 1 . . 1 . Parts Fused 8 | . . . . . . . . . . 1 . . . . . . . . . . . 1 . 2 4 . . . . Data Loss (minor) 37 | . . . . . . . . 1 . 3 . . . . . . . . 1 1 1 8 8 2 8 . . . 4 Data Loss (major) 13 | . . . . . . . . 1 . 2 . . . . . . . 1 . . . 2 1 1 4 . . . 1 Misfires 10 | . . . . . . . . . . 1 . . . . . . . . . . . 4 2 2 1 . . . . Alerts 5 | . . . . . . . . . . . . . . . . . . . . . . 1 . 1 2 . . . 1 Misdirections 3 | . . . . . . . . . . . . . . . . . . . . . . . 2 1 . . . . . Weapon Failures 22 | . . . . . . . . . . . . . . . . . . . . 2 . 8 4 . 4 . . . 4 Overload Shots . | . . . . . . . . . . . . . . . . . . . . . . . . . . . . . . Overflow Damage 2772 | . . . 38 6 8 24 33 10 . 87 103 . . . 55 13 . 19 . 105 30 93 172 360 517 . 675 299 125 Projectiles 440 | . . . . . . . . . . . 2 . . . 55 13 . . . . . 22 38 27 45 . . 117 121 Explosions 1318 | . . . 38 6 8 24 . 10 . 44 13 . . . . . . 19 . . . 71 . 10 337 . 585 153 . Melee 1014 | . . . . . . . 33 . . 43 88 . . . . . . . . 105 30 . 134 323 135 . 90 29 4 Knockbacks 19 | . . . . . . 2 1 . . . 4 1 1 . 4 . . . . 1 2 . . . . . . 2 1 Impact 12 | . . . . . . 1 1 . . . 1 . 1 . 2 . . . . 1 2 . . . . . . 2 1 Kinetic 5 | . . . . . . . . . . . 3 1 . . 1 . . . . . . . . . . . . . . Secondary 2 | . . . . . . 1 . . . . . . . . 1 . . . . . . . . . . . . . . Self-Inflicted Damage 429 | . . . 30 42 11 . 71 . . 31 . . . . . . . 75 . . . . . 6 . . 74 89 . Shots 10 | . . . 1 1 1 . 2 . . 1 . . . . . . . 1 . . . . . 1 . . 1 1 . Rammed 61 | . 2 5 4 . 7 7 1 . 3 . . 1 2 . 10 . . 4 . 2 3 2 . 2 . 2 . 3 1 Targets Rammed 71 | . 2 5 6 . 9 7 1 . 3 . . 2 3 . 11 . . 4 . 2 5 3 . 2 . 2 . 3 1 Kicked . | . . . . . . . . . . . . . . . . . . . . . . . . . . . . . . Crushed 10 | . . . 2 . 2 . . . . . . 1 1 . 1 . . . . . 2 1 . . . . . . . Highest Temperature 586 | 45 72 . 11 . 72 289 352 18 24 201 13 419 . . 71 95 116 241 317 263 127 328 283 371 256 10 193 438 586 Average Temperature 96 | 19 25 . 11 . 21 68 91 4 13 70 8 93 . . 26 39 48 92 116 79 49 99 84 115 93 7 85 127 148 Received Heat Transfer 4513 | . 42 . 174 24 677 688 378 81 87 192 87 609 . . 66 12 . 189 . 159 . 174 79 171 99 27 187 141 170 Effects 25 | . . . . . . . 1 . . . . 1 . . . . . . 3 . . 1 . 6 3 . . 2 8 Shutdowns 7 | . . . . . . . . . . . . 1 . . . . . . . . . . . 1 . . . 1 4 Energy Bleed 2 | . . . . . . . 1 . . . . . . . . . . . . . . . . 1 . . . . . Interference 12 | . . . . . . . . . . . . . . . . . . . 3 . . 1 . 3 3 . . . 2 Matter Decay 1 | . . . . . . . . . . . . . . . . . . . . . . . . . . . . . 1 Short Circuit 1 | . . . . . . . . . . . . . . . . . . . . . . . . 1 . . . . . Damage (minor) 1 | . . . . . . . . . . . . . . . . . . . . . . . . . . . . 1 . Damage (core) 1 | . . . . . . . . . . . . . . . . . . . . . . . . . . . . . 1 Siege Activations 5 | . . . . . . . . . . . . 1 . . . . . 2 . . . 2 . . . . . . . Total Turns 35 | . . . . . . . . . . . . 10 . . . . . 9 . . . 16 . . . . . . . Longest Duration 10 | . . . . . . . . . . . . 10 . . . . . 7 . . . 10 . . . . . . . Martial Activations . | . . . . . . . . . . . . . . . . . . . . . . . . . . . . . . Shielding Activations . | . . . . . . . . . . . . . . . . . . . . . . . . . . . . . . Robots Disrupted 1 | . . . . . . . . . . . . . . . . . . . . . . . . . 1 . . . . Combat Hostiles 1 | . . . . . . . . . . . . . . . . . . . . . . . . . 1 . . . . Robots Corrupted 37 | . . . . . . . 1 . . 1 1 . . . . . . 9 . 2 . 1 2 3 8 . 4 2 3 Combat Hostiles 21 | . . . . . . . . . . . . . . . . . . . . 1 . 1 1 3 8 . 4 1 2 Parts Fried 66 | . . . . . . . 2 . . 2 2 . 1 . . . . 13 . 5 . 4 3 10 12 . 4 4 4 Impact Corruptions 13 | . . . . . . . 1 . . 1 4 . 1 . . . . . . 3 1 . . . . . . 1 1 Robots Melted 4 | . . . . . . . . . . . . . . . . . . . . . . . . 1 . . . 2 1 Combat Hostiles 4 | . . . . . . . . . . . . . . . . . . . . . . . . 1 . . . 2 1 Parts Melted 22 | . . . . . . . . . . . . 2 . . . . . . . . . 1 . 4 1 . . 7 7 Heat Transferred 8004 | 222 222 . . . . . . . . 475 500 2683 . . . . . . . . . . . 684 481 . . 1221 1516 Parts Sabotaged . | . . . . . . . . . . . . . . . . . . . . . . . . . . . . . . Parts Stolen . | . . . . . . . . . . . . . . . . . . . . . . . . . . . . . . Parts Stripped . | . . . . . . . . . . . . . . . . . . . . . . . . . . . . . . Power Chain Reactions . | . . . . . . . . . . . . . . . . . . . . . . . . . . . . . . Alert | -11 -10 -10 -9 -9 -8 -8 -8 -8 -7 -7 -6 -6 -5 -5 -5 -5 -5 -5 -4 -4 -3 -3 -3 -2 -2 -1 -1 -1 -1 ------- Run | Yrd Mat Min Mat Min Mat Gar Mat Gar Fac Gar Fac Gar Fac Gar Ext Cet Arc Hub Fac Gar Res Qua Gar Res Gar Acc Gar Acc Com Maximum Alert Level 5 | . . . 2 . 2 5 3 4 2 4 3 5 3 4 4 2 1 4 3 3 2 2 4 3 5 4 5 4 2 Low Security (%) 16 | 100 100 100 59 100 28 . . . . . . 1 . . . . . 1 . . 76 37 . . . . . . 24 Level 1 17 | . . . 32 . 48 6 . . 28 33 16 27 . 18 31 . 100 12 . 12 6 61 5 . . . . . 39 Level 2 27 | . . . 8 . 22 10 35 31 71 34 81 17 . 42 41 100 . 35 94 23 17 1 24 82 7 . . . 36 Level 3 22 | . . . . . . 21 64 51 . 15 2 11 100 34 25 . . 39 5 64 . . 56 17 11 28 30 92 . Level 4 11 | . . . . . . 53 . 16 . 16 . 28 . 3 1 . . 10 . . . . 13 . 37 72 25 6 . Level 5 5 | . . . . . . 8 . . . . . 12 . . . . . . . . . . . . 43 . 44 . . High Security . | . . . . . . . . . . . . . . . . . . . . . . . . . . . . . . Max Security . | . . . . . . . . . . . . . . . . . . . . . . . . . . . . . . Peak Influence 2501 | 20 96 75 438 164 451 1738 868 1243 652 1311 705 1936 1016 1102 1122 626 334 1530 728 1023 584 405 1171 864 2104 1262 2501 1500 588 Initial 1500 | . . 14 . 164 . 211 846 527 652 258 688 179 1016 695 578 596 207 98 728 305 575 16 292 658 634 1262 730 1500 588 Average 668 | 3 30 6 167 75 288 1134 730 878 453 629 603 902 973 665 586 564 289 747 489 711 208 234 824 605 1491 1140 1571 860 327 Influence Increases 23893 | 25 317 86 925 103 1119 1687 590 846 325 1163 254 1977 147 907 1194 313 203 1872 252 878 144 1205 1069 1346 1640 119 1941 965 281 Destroy 0b10 Robot/C 9580 | . 160 60 480 80 720 880 340 360 140 440 140 720 60 . 420 120 60 480 100 400 40 660 360 540 600 40 700 300 180 Destroy 0b10 Robot/NC 606 | 25 20 5 65 . 60 10 35 . 20 30 15 . 10 . 30 5 . 70 . 15 20 20 20 95 20 . . 12 4 Destroy Leader 1440 | . 34 10 162 10 162 70 98 30 54 30 50 60 20 . 52 . . 116 20 40 14 104 30 90 40 10 60 48 26 Allied During Kill 3197 | . . 11 58 . . 69 13 19 11 11 6 136 23 . 493 125 60 625 24 96 24 97 28 206 400 34 510 110 8 Successful Hack 673 | . 27 . 43 . 61 44 4 . 41 . 27 14 . 42 61 . . 45 24 . 27 74 32 37 35 32 . . 3 Select Force Hacks 90 | . 30 . 60 . . . . . . . . . . . . . . . . . . . . . . . . . . Disable Machine 846 | . . . 15 . 15 . 30 . 15 30 . 45 . 15 60 15 45 165 60 . 15 210 . 15 . . 12 60 24 Anti-Garrison Action 4414 | . . . . . . 500 . 300 . 550 . 900 . 850 . . . . . 250 . . 400 . 350 . 314 . . Destroy Structure 2324 | . 1 . 12 13 41 69 25 122 14 57 16 72 4 . 78 48 38 326 24 17 4 40 139 228 180 3 318 411 24 Partial Spotted 105 | . 15 . . . . . 15 . 15 . . . . . . . . . . . . . . 45 15 . . . . Lose Combat Pursuer 618 | . 30 . 30 . 60 45 30 15 15 15 . 30 30 . . . . 45 . 60 . . 60 90 . . 27 24 12 Influence Decreases 23766 | 25 279 123 504 525 794 274 1516 415 1199 221 1308 298 1090 798 1230 860 442 664 1304 291 1137 845 288 1671 382 1310 353 2547 1073 Entered New Map 10216 | . . 24 1 258 . 114 892 285 591 111 623 78 920 298 524 470 312 182 760 131 448 14 98 513 212 842 183 1001 331 Time Decay 7290 | 25 279 79 463 267 584 . 494 . 478 . 350 . 90 . 556 270 90 262 294 . 294 581 . 628 . 198 . 586 422 Lost Part 760 | . . . . . 60 80 10 30 30 50 . 80 . . . . . 20 . 40 . 80 30 80 50 . 30 30 60 Lost Ally 3350 | . . 20 40 . . 80 120 100 100 60 60 140 80 . 150 120 40 200 100 120 20 170 160 300 120 270 140 380 260 Purge Threat 2150 | . . . . . 150 . . . . . 275 . . 500 . . . . 150 . 375 . . 150 . . . 550 . Squads Dispatched 94 | . 2 . 4 . 5 . 5 . 7 . 4 . 2 . 2 . . 7 4 . 4 14 . 14 . 5 . 12 3 Investigation 15 | . 1 . 3 . 1 . 2 . 1 . . . . . 1 . . . 1 . 3 1 . . . 1 . . . Extermination 24 | . . . . . . . . . 2 . 3 . . . . . . 1 1 . . 4 . 5 . . . 5 3 Reinforcement 31 | . 1 . 1 . 2 . 3 . 2 . 1 . 1 . . . . 6 1 . 1 3 . 6 . 1 . 2 . Assault 8 | . . . . . . . . . 2 . . . . . 1 . . . . . . . . 2 . 1 . 2 . Garrison 16 | . . . . . 2 . . . . . . . 1 . . . . . 1 . . 6 . 1 . 2 . 3 . Intercept . | . . . . . . . . . . . . . . . . . . . . . . . . . . . . . . Searches Triggered . | . . . . . . . . . . . . . . . . . . . . . . . . . . . . . . Unchained Authorized 3 | . . . . . . . . . . . . . . . . . . . . . . . . 1 . 1 . 1 . Construction Impeded 8 | . . . 1 . . . 1 . . . . . . . . . . 2 . . . . . 3 . 1 . . . Haulers Reinforced 4 | . . . . . . . . . 1 . . . . . . . . 2 . . 1 . . . . . . . . Active Scanning Responses . | . . . . . . . . . . . . . . . . . . . . . . . . . . . . . . Cargo Convoy Interrupts . | . . . . . . . . . . . . . . . . . . . . . . . . . . . . . . Alert ID Control Effect 152 | . . . . . . . . 2 4 8 3 4 . . 5 2 1 1 4 10 1 3 2 28 6 13 28 23 4 Stealth | -11 -10 -10 -9 -9 -8 -8 -8 -8 -7 -7 -6 -6 -5 -5 -5 -5 -5 -5 -4 -4 -3 -3 -3 -2 -2 -1 -1 -1 -1 --------- Run | Yrd Mat Min Mat Min Mat Gar Mat Gar Fac Gar Fac Gar Fac Gar Ext Cet Arc Hub Fac Gar Res Qua Gar Res Gar Acc Gar Acc Com Distress Signals 36 | . 2 1 . . 6 . 6 1 2 . . . 2 . . 1 . 1 . . 7 3 . 3 . . . 1 . Communications Jammed 3 | . . . . . . . . . . . . . . . . . . . . . . . . 3 . . . . . Distress Signals . | . . . . . . . . . . . . . . . . . . . . . . . . . . . . . . Times Spotted 941 | . 21 6 31 5 59 48 34 28 21 33 15 45 5 . 40 8 4 34 18 37 12 45 42 115 54 11 66 73 31 Peak Tracking Total 14 | . 4 3 7 3 12 6 6 5 3 5 4 7 2 . 6 5 2 13 4 7 2 7 10 11 6 4 14 8 4 Tactical Retreats 31 | . 1 1 1 . 2 2 2 1 1 1 . 2 1 . . . . 2 . 3 . . 3 3 . . 2 2 1 ID Masks Used 1 | . . . . . . . . . . . . . . . . . . . . . . . . 1 . . . . . IFF Responses 127 | . . . . . . . . . . . . . . . . . . . . . . . . 112 15 . . . . Traps | -11 -10 -10 -9 -9 -8 -8 -8 -8 -7 -7 -6 -6 -5 -5 -5 -5 -5 -5 -4 -4 -3 -3 -3 -2 -2 -1 -1 -1 -1 ------- Run | Yrd Mat Min Mat Min Mat Gar Mat Gar Fac Gar Fac Gar Fac Gar Ext Cet Arc Hub Fac Gar Res Qua Gar Res Gar Acc Gar Acc Com Traps Triggered 45 | . . . . . . 11 . 4 . 5 . 5 . 1 1 . . . . 2 . . 1 1 1 . 2 4 7 Indirectly . | . . . . . . . . . . . . . . . . . . . . . . . . . . . . . . Trap Hack Attempts . | . . . . . . . . . . . . . . . . . . . . . . . . . . . . . . Triggered . | . . . . . . . . . . . . . . . . . . . . . . . . . . . . . . Disarmed . | . . . . . . . . . . . . . . . . . . . . . . . . . . . . . . Reprogrammed . | . . . . . . . . . . . . . . . . . . . . . . . . . . . . . . Reused . | . . . . . . . . . . . . . . . . . . . . . . . . . . . . . . Traps Extracted . | . . . . . . . . . . . . . . . . . . . . . . . . . . . . . . Installed 1 | . . 1 . . . . . . . . . . . . . . . . . . . . . . . . . . . Triggered . | . . . . . . . . . . . . . . . . . . . . . . . . . . . . . . Machines | -11 -10 -10 -9 -9 -8 -8 -8 -8 -7 -7 -6 -6 -5 -5 -5 -5 -5 -5 -4 -4 -3 -3 -3 -2 -2 -1 -1 -1 -1 ---------- Run | Yrd Mat Min Mat Min Mat Gar Mat Gar Fac Gar Fac Gar Fac Gar Ext Cet Arc Hub Fac Gar Res Qua Gar Res Gar Acc Gar Acc Com Machines Disabled 101 | . . . 1 . 1 4 2 4 1 7 . 9 . 6 5 1 3 11 4 4 1 14 5 1 5 . 5 5 2 Max in Single Turn 6 | . . . . . 1 1 2 1 1 1 . 1 . 1 1 1 1 6 1 1 1 1 1 1 1 . 1 1 . Garrison Access 3 | . . . . . . . . . 1 . . . . . . . . 1 . . . . . 1 . . . . . Garrison Relay 42 | . . . . . . 4 . 4 . 5 . 6 . 5 . . . . . 4 . . 5 . 5 . 4 . . Network Hub 1 | . . . . . . . . . . . . . . . . . . 1 . . . . . . . . . . . Energy Cycler 2 | . . . . . . . . . . . . . . . 2 . . . . . . . . . . . . . . Machines Repaired . | . . . . . . . . . . . . . . . . . . . . . . . . . . . . . . Machines Dismantled 10 | . . . . . . . . . . . . . . . 2 1 . . . . . 3 1 . . . . 3 . Machines Sabotaged . | . . . . . . . . . . . . . . . . . . . . . . . . . . . . . . Overloaded Fab Kills . | . . . . . . . . . . . . . . . . . . . . . . . . . . . . . . Hacking | -11 -10 -10 -9 -9 -8 -8 -8 -8 -7 -7 -6 -6 -5 -5 -5 -5 -5 -5 -4 -4 -3 -3 -3 -2 -2 -1 -1 -1 -1 --------- Run | Yrd Mat Min Mat Min Mat Gar Mat Gar Fac Gar Fac Gar Fac Gar Ext Cet Arc Hub Fac Gar Res Qua Gar Res Gar Acc Gar Acc Com Machines Accessed 122 | . 9 . 12 . 12 5 4 4 7 2 5 2 1 3 8 1 . 5 6 3 2 10 2 9 4 2 2 . 2 Terminals 88 | . 7 . 8 . 8 5 1 4 1 2 3 2 . 3 8 1 . 4 2 3 2 8 2 5 4 1 2 . 2 Fabricators 2 | . . . . . . . . . 1 . . . . . . . . . . . . . . 1 . . . . . Repair Stations . | . . . . . . . . . . . . . . . . . . . . . . . . . . . . . . Recycling Units 12 | . 2 . 2 . 1 . 1 . 3 . . . . . . . . . 3 . . . . . . . . . . Scanalyzers 9 | . . . 2 . 2 . 1 . 1 . 1 . . . . . . . . . . 1 . 1 . . . . . Garrison Access 11 | . . . . . 1 . 1 . 1 . 1 . 1 . . . . 1 1 . . 1 . 2 . 1 . . . Total Hacks 372 | . 31 . 44 . 56 14 8 9 16 2 18 4 2 6 15 1 . 12 22 6 3 46 8 26 9 5 3 . 6 Successful 160 | . 15 . 26 . 27 3 3 1 8 . 9 1 1 3 7 . . 6 14 1 1 14 2 10 3 3 1 . 1 Failed 208 | . 16 . 17 . 28 11 4 8 8 2 8 3 1 3 8 1 . 6 8 5 2 32 6 16 6 2 2 . 5 Catastrophic 55 | . . . . . 4 3 1 3 2 2 2 1 1 1 1 1 . 2 2 4 2 9 2 5 2 2 1 . 2 Database Lockouts 4 | . . . 1 . 1 . 1 . . . 1 . . . . . . . . . . . . . . . . . . Manual 176 | . 21 . 31 . 37 2 3 1 3 . 9 1 1 2 5 1 . 2 10 1 . 25 2 14 3 2 . . . Terminals 276 | . 28 . 33 . 43 14 2 9 3 2 10 4 . 6 15 1 . 8 10 6 3 34 8 17 9 2 3 . 6 Fabricators 6 | . . . . . . . . . 2 . . . . . . . . . . . . . . 4 . . . . . Repair Stations . | . . . . . . . . . . . . . . . . . . . . . . . . . . . . . . Recycling Units 24 | . 3 . 4 . 3 . 2 . 6 . . . . . . . . . 6 . . . . . . . . . . Scanalyzers 30 | . . . 7 . 6 . 2 . 3 . 3 . . . . . . . . . . 6 . 3 . . . . . Garrison Access 36 | . . . . . 4 . 2 . 2 . 5 . 2 . . . . 4 6 . . 6 . 2 . 3 . . . Terminal Hacks 59 | . 4 . 7 . 8 3 . 1 1 . 3 1 . 3 5 . . 2 4 1 1 4 2 4 3 . 1 . 1 Robot Analysis 6 | . 1 . 3 . 1 . . . 1 . . . . . . . . . . . . . . . . . . . . Prototype ID Bank 7 | . 1 . . . 3 . . . . . . . . . . . . . 1 . . 2 . . . . . . . Open Door 6 | . . . . . . . . . . . . . . . 3 . . . . . . . . . 1 . 1 . 1 Level Access Points 1 | . . . . . . . . . . . . . . . . . . 1 . . . . . . . . . . . Branch Access Points 5 | . . . 1 . 1 . . . . . . . . . . . . . 1 . 1 . . 1 . . . . . Emergency Access Points 5 | . . . . . . 1 . . . . . . . 1 . . . 1 . . . . 1 . 1 . . . . Terminal Index 5 | . 1 . 1 . . . . . . . 1 . . . . . . . 1 . . . . 1 . . . . . Alert Level 1 | . . . . . 1 . . . . . . . . . . . . . . . . . . . . . . . . Unreport Threat 1 | . . . . . 1 . . . . . . . . . . . . . . . . . . . . . . . . Locate Traps 3 | . . . 1 . . . . . . . . . . . 1 . . . 1 . . . . . . . . . . Patrol Status 1 | . . . . . . . . . . . 1 . . . . . . . . . . . . . . . . . . Transport Status 1 | . . . . . . . . . . . 1 . . . . . . . . . . . . . . . . . . Garrison Status 1 | . . . . . . . . . . . . . . . . . . . . . . . . 1 . . . . . Recall Assault 1 | . . . . . . . . . . . . . . . . . . . . . . . . 1 . . . . . Hauler Manifests 3 | . 1 . 1 . . . . . . . . . . . . . . . . . . 1 . . . . . . . Registered Components 3 | . . . . . 1 . . . . . . . . . 1 . . . . . . 1 . . . . . . . Garrison Registry 5 | . . . . . . 1 . 1 . . . 1 . . . . . . . 1 . . . . 1 . . . . Patrol Navigation 2 | . . . . . . . . . . . . . . 1 . . . . . . . . 1 . . . . . . Security Stations 2 | . . . . . . 1 . . . . . . . 1 . . . . . . . . . . . . . . . Fabricator Hacks 2 | . . . . . . . . . 1 . . . . . . . . . . . . . . 1 . . . . . Network Status 2 | . . . . . . . . . 1 . . . . . . . . . . . . . . 1 . . . . . Repair Station Hacks . | . . . . . . . . . . . . . . . . . . . . . . . . . . . . . . Recycling Unit Hacks 9 | . 2 . 2 . . . . . 2 . . . . . . . . . 3 . . . . . . . . . . Retrieve Matter 1 | . . . . . . . . . 1 . . . . . . . . . . . . . . . . . . . . Retrieve Components 8 | . 2 . 2 . . . . . 1 . . . . . . . . . 3 . . . . . . . . . . Scanalyzer 17 | . . . 5 . 4 . 1 . 2 . 1 . . . . . . . . . . 3 . 1 . . . . . Insert Component 3 | . . . 1 . 1 . . . 1 . . . . . . . . . . . . . . . . . . . . Analyze 3 | . . . 1 . 1 . . . 1 . . . . . . . . . . . . . . . . . . . . Retrieve Study 11 | . . . 3 . 2 . 1 . . . 1 . . . . . . . . . . 3 . 1 . . . . . Garrison Access Hacks 13 | . . . . . 1 . 1 . 1 . 1 . 1 . . . . 2 2 . . 1 . 2 . 1 . . . Unlock Access 9 | . . . . . 1 . 1 . 1 . 1 . 1 . . . . . 1 . . 1 . 1 . 1 . . . Seal Access 2 | . . . . . . . . . . . . . . . . . . 1 . . . . . 1 . . . . . Coupler Status 2 | . . . . . . . . . . . . . . . . . . 1 1 . . . . . . . . . . Unauthorized Hacks 60 | . 9 . 12 . 14 . 1 . 1 . 4 . . . 2 . . 2 5 . . 6 . 2 . 2 . . . Terminals 43 | . 8 . 10 . 13 . 1 . . . 2 . . . 2 . . . . . . 5 . 2 . . . . . Track 5 | . . . . . 2 . . . . . . . . . 1 . . . . . . 1 . 1 . . . . . Assimilate 4 | . . . 1 . 2 . . . . . . . . . . . . . . . . 1 . . . . . . . Botnet 11 | . 1 . 3 . 2 . . . . . 1 . . . . . . . . . . 3 . 1 . . . . . Operators 5 | . 1 . 1 . 1 . . . . . 1 . . . 1 . . . . . . . . . . . . . . Skim 18 | . 6 . 5 . 6 . 1 . . . . . . . . . . . . . . . . . . . . . . Fabricators 1 | . . . . . . . . . 1 . . . . . . . . . . . . . . . . . . . . Haulers 1 | . . . . . . . . . 1 . . . . . . . . . . . . . . . . . . . . Repair Stations . | . . . . . . . . . . . . . . . . . . . . . . . . . . . . . . Recycling Units 4 | . 1 . 2 . . . . . . . . . . . . . . . 1 . . . . . . . . . . Recyclers 1 | . . . . . . . . . . . . . . . . . . . 1 . . . . . . . . . . Tunnel 3 | . 1 . 2 . . . . . . . . . . . . . . . . . . . . . . . . . . Scanalyzers . | . . . . . . . . . . . . . . . . . . . . . . . . . . . . . . Garrison Access 12 | . . . . . 1 . . . . . 2 . . . . . . 2 4 . . 1 . . . 2 . . . Broadcast 1 | . . . . . . . . . . . . . . . . . . . 1 . . . . . . . . . . Restock 1 | . . . . . . . . . . . . . . . . . . . 1 . . . . . . . . . . Reprogram 6 | . . . . . 1 . . . . . 1 . . . . . . 1 1 . . 1 . . . 1 . . . Watchers 4 | . . . . . . . . . . . 1 . . . . . . 1 1 . . . . . . 1 . . . Data Cores Recovered 5 | . . . 3 . . . . . . . 1 . . . . . . . . . . 1 . . . . . . . Used . | . . . . . . . . . . . . . . . . . . . . . . . . . . . . . . Hacking Detections 106 | . 7 . 10 . 12 4 4 4 7 2 4 2 1 3 6 1 . 4 5 3 2 10 2 8 1 2 1 . 1 Full Trace Events 7 | . 1 . . . . 2 1 . 1 . . . . . . . . . . 1 . . 1 . . . . . . Feedback Events . | . . . . . . . . . . . . . . . . . . . . . . . . . . . . . . Feedback Blocked . | . . . . . . . . . . . . . . . . . . . . . . . . . . . . . . Robot Schematics Acquired . | . . . . . . . . . . . . . . . . . . . . . . . . . . . . . . Robots Built . | . . . . . . . . . . . . . . . . . . . . . . . . . . . . . . Authchips . | . . . . . . . . . . . . . . . . . . . . . . . . . . . . . . Time . | . . . . . . . . . . . . . . . . . . . . . . . . . . . . . . Total Robot Build Rating . | . . . . . . . . . . . . . . . . . . . . . . . . . . . . . . Part Schematics Acquired 3 | . . . 1 . 1 . . . 1 . . . . . . . . . . . . . . . . . . . . Parts Built . | . . . . . . . . . . . . . . . . . . . . . . . . . . . . . . Authchips . | . . . . . . . . . . . . . . . . . . . . . . . . . . . . . . Time . | . . . . . . . . . . . . . . . . . . . . . . . . . . . . . . Total Part Build Rating . | . . . . . . . . . . . . . . . . . . . . . . . . . . . . . . Part Studies Acquired 11 | . . . 3 . 2 . 1 . . . 1 . . . . . . . . . . 3 . 1 . . . . . Parts Repaired . | . . . . . . . . . . . . . . . . . . . . . . . . . . . . . . Time . | . . . . . . . . . . . . . . . . . . . . . . . . . . . . . . Parts Recycled . | . . . . . . . . . . . . . . . . . . . . . . . . . . . . . . Recycled Matter . | . . . . . . . . . . . . . . . . . . . . . . . . . . . . . . Retrieved Matter . | . . . . . . . . . . . . . . . . . . . . . . . . . . . . . . Retrieved Components 26 | . 3 . 13 . . . . . 5 . . . . . . . . . 5 . . . . . . . . . . Parts Scanalyzed 3 | . . . 1 . 1 . . . 1 . . . . . . . . . . . . . . . . . . . . Part Schematics Acquired 3 | . . . 1 . 1 . . . 1 . . . . . . . . . . . . . . . . . . . . Parts Damaged . | . . . . . . . . . . . . . . . . . . . . . . . . . . . . . . Bothacking | -11 -10 -10 -9 -9 -8 -8 -8 -8 -7 -7 -6 -6 -5 -5 -5 -5 -5 -5 -4 -4 -3 -3 -3 -2 -2 -1 -1 -1 -1 ------------ Run | Yrd Mat Min Mat Min Mat Gar Mat Gar Fac Gar Fac Gar Fac Gar Ext Cet Arc Hub Fac Gar Res Qua Gar Res Gar Acc Gar Acc Com Used RIF Installer 12 | . . . . . . 1 . 2 . 2 . 1 . 1 . . . . . 1 . . 1 . 1 . 2 . . Hotswap 1 | . . . . . . . . . . . . . . . . . . . . 1 . . . . . . . . . Command Fork 1 | . . . . . . . . . . 1 . . . . . . . . . . . . . . . . . . . Threat Obfuscator 1 | . . . . . . . . . . . . . . . . . . . . . . . . . . . 1 . . Robot Detection 1 | . . . . . . . . 1 . . . . . . . . . . . . . . . . . . . . . Watcher Feeds 1 | . . . . . . . . . . . . . . 1 . . . . . . . . . . . . . . . Alert ID Control 1 | . . . . . . . . 1 . . . . . . . . . . . . . . . . . . . . . Structural Interface 1 | . . . . . . . . . . . . 1 . . . . . . . . . . . . . . . . . Program Shield 1 | . . . . . . . . . . . . . . . . . . . . . . . . . 1 . . . . Autooverride 1 | . . . . . . . . . . . . . . . . . . . . . . . . . . . 1 . . Autoassimilate 2 | . . . . . . . . . . 1 . . . . . . . . . . . . 1 . . . . . . Robots Hacked 214 | . . . . . . . 11 9 15 5 9 9 . 2 16 . . 2 7 10 4 8 16 18 16 8 11 21 17 Non-combat 39 | . . . . . . . 5 . 8 . 2 . . 1 1 . . 1 2 . 3 1 . 3 . 3 . 8 1 Combat 175 | . . . . . . . 6 9 7 5 7 9 . 1 15 . . 1 5 10 1 7 16 15 16 5 11 13 16 Autooverrided 3 | . . . . . . . . . . . . . . . . . . . . . . . . . . . . 1 2 Autoassimilated 37 | . . . . . . . . . . 1 1 2 . . . . . 1 1 2 1 4 2 5 3 2 2 1 9 Robot Hacks Applied 214 | . . . . . . . 13 9 21 4 16 9 . 8 17 . . 1 7 8 6 4 14 15 13 6 11 25 7 parse_system 18 | . . . . . . . 5 1 1 . 2 1 . 1 4 . . . . . . 1 . . 1 . 1 . . no_distress 3 | . . . . . . . . . 3 . . . . . . . . . . . . . . . . . . . . find_chute 1 | . . . . . . . . . 1 . . . . . . . . . . . . . . . . . . . . map_walls 1 | . . . . . . . . . . . 1 . . . . . . . . . . . . . . . . . . find_fabricator 1 | . . . . . . . . . 1 . . . . . . . . . . . . . . . . . . . . drop_inventory 13 | . . . . . . . 1 . 5 . . . . . . . . 1 . . 1 . . . . 2 . 3 . find_recycling 1 | . . . . . . . . . 1 . . . . . . . . . . . . . . . . . . . . ignore_parts 1 | . . . . . . . . . 1 . . . . . . . . . . . . . . . . . . . . check_alert 1 | . . . . . . . . . . . 1 . . . . . . . . . . . . . . . . . . purge_threat 18 | . . . . . . . . . . . 2 . . 5 . . . . 1 . 3 . . 1 . . . 6 . locate_traps 1 | . . . . . . . . . . . 1 . . . . . . . . . . . . . . . . . . disarm_traps 1 | . . . . . . . . . . . . . . . . . . . . . . . . . . . . 1 . block_reporting 4 | . . . . . . . . . . . . . . . . . . . 1 . 1 . . 2 . . . . . summon_haulers 1 | . . . . . . . . . . . 1 . . . . . . . . . . . . . . . . . . clear_repairs 1 | . . . . . . . . . . . . . . 1 . . . . . . . . . . . . . . . map_route 9 | . . . . . . . 1 . 1 . . . . . . . . . 1 . . . . . . 1 . 4 1 scatter_targeting 2 | . . . . . . . . . . . . . . . . . . . . . . . . . . . . . 2 mark_system 1 | . . . . . . . . . 1 . . . . . . . . . . . . . . . . . . . . broadcast_data 2 | . . . . . . . . . . . . . . . 1 . . . . . . . . . . . 1 . . spike_heat 5 | . . . . . . . . . 1 1 . . . . . . . . . . . . . . . . 2 1 . overload_power 4 | . . . . . . . . . . . 1 2 . . . . . . . . . . 1 . . . . . . amplify_resonance 10 | . . . . . . . 2 . 2 . . 1 . . . . . . . . . . 2 2 . . . 1 . wipe_record 2 | . . . . . . . . . . . 1 1 . . . . . . . . . . . . . . . . . disable_weapons 8 | . . . . . . . 1 1 . . 1 1 . . . . . . 1 . . 1 1 . . . 1 . . go_dormant 4 | . . . . . . . . 1 . . 2 . . . . . . . . . . . . . . 1 . . . overwrite_iff 5 | . . . . . . . . . . . . . . . 1 . . . . 1 . . 2 1 . . . . . streamctrl_high 2 | . . . . . . . . 2 . . . . . . . . . . . . . . . . . . . . . formatsys_low 4 | . . . . . . . . . . . . . . 1 . . . . . . 1 . . 2 . . . . . formatsys_high 89 | . . . . . . . 3 4 3 3 3 3 . . 11 . . . 3 7 . 2 8 7 12 2 5 9 4 formatsys_deep 1 | . . . . . . . . . . . . . . . . . . . . . . . . . . . 1 . . Relay Couplers Released 182 | . . . . . . 18 . 16 2 24 . 25 . 20 . . . . 3 17 . . 20 1 20 . 16 . . Machine Destruction 171 | . . . . . . 14 . 16 2 24 . 21 . 20 . . . . . 17 . . 20 1 20 . 16 . . Programmers 11 | . . . . . . 4 . . . . . 4 . . . . . . 3 . . . . . . . . . . Attached 81 | . . . . . . . 5 4 6 4 4 8 . 5 4 . . . 3 5 1 1 7 4 4 2 7 . 7 Fabnet Peak Effective % . | . . . . . . . . . . . . . . . . . . . . . . . . . . . . . . Robots Rewired 45 | . . . . . . 8 . 3 . . . 6 . 8 10 . . . . . . . 4 . 6 . . . . Allies Hacked 2 | . . . . . . . . . . . . . . . . . . 1 . . . . 1 . . . . . . Hacks Repelled . | . . . . . . . . . . . . . . . . . . . . . . . . . . . . . . Allies | -11 -10 -10 -9 -9 -8 -8 -8 -8 -7 -7 -6 -6 -5 -5 -5 -5 -5 -5 -4 -4 -3 -3 -3 -2 -2 -1 -1 -1 -1 -------- Run | Yrd Mat Min Mat Min Mat Gar Mat Gar Fac Gar Fac Gar Fac Gar Ext Cet Arc Hub Fac Gar Res Qua Gar Res Gar Acc Gar Acc Com Total Allies 223 | . . 3 . . 1 8 3 9 3 4 4 13 . 9 33 5 . 1 7 11 2 7 17 15 22 7 12 13 14 Largest Group 36 | . . 3 2 . . 6 3 4 4 2 3 7 6 11 36 31 29 26 3 5 5 6 8 11 14 14 7 7 6 Highest-Rated Group 1562 | . . 40 32 . . 63 48 109 94 52 93 326 294 554 1453 1562 1529 1254 159 239 221 285 462 619 777 777 603 599 760 Highest-Rated Ally 219 | . . 16 16 . . 31 16 40 40 32 32 80 80 116 159 159 159 96 56 56 49 64 116 116 69 69 219 219 215 Total Orders 33 | . . . . . . . . . 1 . . . . . . 1 . . 1 . 3 . 2 3 . . 22 . . STAY 16 | . . . . . . . . . 1 . . . . . . . . . 1 . . . 1 2 . . 11 . . ROAM 2 | . . . . . . . . . . . . . . . . 1 . . . . . . . . . . 1 . . FOLLOW 12 | . . . . . . . . . . . . . . . . . . . . . 1 . 1 . . . 10 . . AID 3 | . . . . . . . . . . . . . . . . . . . . . 2 . . 1 . . . . . Ally Attacks 1546 | . . 5 41 . . 58 21 29 37 19 19 58 16 . 147 47 40 126 26 60 8 47 39 216 98 70 150 106 63 Total Damage 54479 | . . 57 474 . . 646 291 787 703 586 437 1396 569 . 3934 1972 1177 3683 728 1954 205 1213 1558 8540 3624 2671 7918 5144 4212 Kills 282 | . . 2 8 . . 7 1 8 9 8 3 9 4 . 26 8 4 25 4 11 2 3 3 45 15 17 32 24 4 Allies Corrupted 20 | . . . . . . . . . . . . . . . . . . 10 . 1 . 2 . . 1 . 1 3 2 Allies Melted 4 | . . . . . . . . 1 . . . . . . 1 . . . . . . . . 1 . . . 1 . Intel | -11 -10 -10 -9 -9 -8 -8 -8 -8 -7 -7 -6 -6 -5 -5 -5 -5 -5 -5 -4 -4 -3 -3 -3 -2 -2 -1 -1 -1 -1 ------- Run | Yrd Mat Min Mat Min Mat Gar Mat Gar Fac Gar Fac Gar Fac Gar Ext Cet Arc Hub Fac Gar Res Qua Gar Res Gar Acc Gar Acc Com Active Infowar (turns) 3157 | 38 413 820 310 593 240 . . . . . . . . . . . . 1 . . . 506 85 101 50 . . . . Seismic 2414 | 38 413 820 310 593 240 . . . . . . . . . . . . . . . . . . . . . . . . Triangulation 1 | . . . . . . . . . . . . . . . . . . 1 . . . . . . . . . . . Jamming 609 | . . . . . . . . . . . . . . . . . . . . . . 506 85 18 . . . . . ID Mask 133 | . . . . . . . . . . . . . . . . . . . . . . . . 83 50 . . . . Robot Analysis Total 6 | . 1 . 3 . 1 . . . 1 . . . . . . . . . . . . . . . . . . . . Derelict Logs Recovered 4 | . . 2 . 2 . . . . . . . . . . . . . . . . . . . . . . . . . Drone Launches . | . . . . . . . . . . . . . . . . . . . . . . . . . . . . . . Drone Recoveries . | . . . . . . . . . . . . . . . . . . . . . . . . . . . . . . Exploration | -11 -10 -10 -9 -9 -8 -8 -8 -8 -7 -7 -6 -6 -5 -5 -5 -5 -5 -5 -4 -4 -3 -3 -3 -2 -2 -1 -1 -1 -1 ------------- Run | Yrd Mat Min Mat Min Mat Gar Mat Gar Fac Gar Fac Gar Fac Gar Ext Cet Arc Hub Fac Gar Res Qua Gar Res Gar Acc Gar Acc Com Turns Passed 37378 | 135 923 1282 1563 680 2000 1965 1308 1355 1233 2160 793 2575 190 1431 1628 589 188 572 640 1180 648 1962 1394 2176 1657 400 1906 1824 1021 Spaces Moved 17384 | 65 489 650 751 401 955 776 510 534 474 811 394 1242 108 796 719 202 76 272 325 548 342 856 701 988 865 215 1011 888 420 Core 50 | 5 . . . . . . . . . . . . . . . . . . . . . . . . . . . . 45 Treads 17334 | 60 489 650 751 401 955 776 510 534 474 811 394 1242 108 796 719 202 76 272 325 548 342 856 701 988 865 215 1011 888 375 Legs . | . . . . . . . . . . . . . . . . . . . . . . . . . . . . . . Wheels . | . . . . . . . . . . . . . . . . . . . . . . . . . . . . . . Hover . | . . . . . . . . . . . . . . . . . . . . . . . . . . . . . . Flight . | . . . . . . . . . . . . . . . . . . . . . . . . . . . . . . Fastest Speed 50 | 50 160 160 160 160 160 160 200 200 212 155 160 160 163 163 163 163 163 163 158 156 154 152 160 160 160 163 163 163 50 Average Speed 171 | 151 160 160 177 163 160 198 200 200 212 214 160 160 163 163 163 163 163 163 162 167 154 164 162 162 160 163 163 168 187 Slowest Speed 256 | 160 160 160 200 200 160 240 200 240 216 224 160 160 163 163 163 163 163 165 163 235 157 235 240 240 240 163 246 255 256 Overloaded Moves . | . . . . . . . . . . . . . . . . . . . . . . . . . . . . . . Propulsion Burnouts . | . . . . . . . . . . . . . . . . . . . . . . . . . . . . . . Robots Hopped . | . . . . . . . . . . . . . . . . . . . . . . . . . . . . . . Potential Cave-ins 4 | . . . . . 2 . . . . . . . . . . . . . . . . . . 2 . . . . . Cave-ins Triggered 1 | . . . . . . . . . . . . . . . . . . . . . . . . 1 . . . . . Teleports 2 | . . . . . . . . . . . . . . . . . . . . . . . . 2 . . . . . Exploration Rate (%) 59 | 6 94 96 63 91 81 88 45 69 17 83 11 84 4 97 97 76 74 48 14 81 9 75 99 40 92 8 93 36 24 Regions Visited 29 Branch Regions 8 Pre-discovered Areas 8 | . 2 2 2 1 1 . . . . . . . . . . . . . . . . . . . . . . . . Known Exits Taken 14 | . . 1 1 1 1 . 1 . 1 . 1 . 1 . . . . 1 1 . 1 1 . 1 . 1 . . . Unknown Exits Taken 6 | 1 1 . . . . . . . . . . . . . 1 1 1 . . . . . . . . . . 1 . Scrap Searched 3 | . . 2 . 1 . . . . . . . . . . . . . . . . . . . . . . . . . Spaces Dug 453 | . . . 1 . 10 12 8 20 14 33 6 17 1 . 8 17 13 . 2 1 . 8 30 26 73 . 37 115 1 Terrain Destroyed 924 | . . . 12 13 46 19 17 22 14 45 14 18 1 . 16 17 19 175 11 7 2 25 47 44 79 . 117 136 8 Melee 125 | . . . 1 . 3 . 8 7 14 15 6 17 1 . 8 17 13 . . 1 . 1 . 7 . . 1 4 1 Projectile 134 | . . . . . . . . . . 1 . 1 . . 8 . 6 30 11 6 2 7 4 30 6 . . 15 7 AOE 660 | . . . 11 13 43 19 9 15 . 29 8 . . . . . . 145 . . . 13 43 6 73 . 116 117 . Terrain Rammed . | . . . . . . . . . . . . . . . . . . . . . . . . . . . . . . Walls Destroyed . | . . . . . . . . . . . . . . . . . . . . . . . . . . . . . . Machines Disabled . | . . . . . . . . . . . . . . . . . . . . . . . . . . . . . . Actions | -11 -10 -10 -9 -9 -8 -8 -8 -8 -7 -7 -6 -6 -5 -5 -5 -5 -5 -5 -4 -4 -3 -3 -3 -2 -2 -1 -1 -1 -1 --------- Run | Yrd Mat Min Mat Min Mat Gar Mat Gar Fac Gar Fac Gar Fac Gar Ext Cet Arc Hub Fac Gar Res Qua Gar Res Gar Acc Gar Acc Com Total 22572 | 82 568 862 886 413 1214 1046 689 708 610 1057 502 1581 116 920 1059 411 103 340 408 692 436 1196 901 1437 1095 258 1217 1134 631 Wait 1505 | . 20 188 24 . 75 20 46 33 8 26 24 41 . 13 191 148 2 14 39 35 35 94 42 200 31 16 71 18 51 Move 17360 | 64 488 649 750 400 954 775 510 533 474 810 393 1241 108 795 718 201 75 272 324 547 341 855 700 988 864 215 1009 887 420 Hop . | . . . . . . . . . . . . . . . . . . . . . . . . . . . . . . Pick Up 311 | 3 12 2 11 1 12 21 8 12 13 28 7 28 . 18 5 7 1 . 5 11 8 20 12 6 26 2 16 9 7 Fast Attach 86 | 7 1 . . . 3 3 1 1 1 2 2 4 . 3 2 2 . 3 . 3 3 4 7 8 10 . 6 9 1 Attach 148 | . 1 1 2 . 5 8 2 5 7 8 4 11 1 . 4 2 . 1 6 5 2 11 10 19 11 2 3 6 11 Detach 51 | . 3 . . . . 1 1 1 1 3 2 6 . 1 2 . . . 3 1 . . 5 12 2 . 3 3 1 Swap 598 | . 3 3 20 5 30 22 30 35 28 38 20 37 2 15 16 6 2 12 8 22 13 40 30 47 25 4 23 34 28 Drop 263 | . 6 . 23 1 19 8 12 8 7 21 6 21 . 19 1 8 1 3 1 4 11 17 13 2 23 1 16 10 1 Fire 1554 | 8 32 13 47 6 104 98 69 38 53 76 37 95 1 22 68 9 6 32 22 54 18 106 70 130 87 15 52 99 87 Melee 301 | . . . 3 . 3 12 9 33 15 37 7 41 1 5 10 20 16 . . 7 . 5 9 23 14 2 18 7 4 Ram . | . . . . . . . . . . . . . . . . . . . . . . . . . . . . . . Kick . | . . . . . . . . . . . . . . . . . . . . . . . . . . . . . . Crush 69 | . 2 5 6 . 9 7 1 . 3 . . 2 3 . 11 . . 3 . 2 5 3 . 2 . 1 . 3 1 Escape Stasis 48 | . . . . . . 18 . 8 . 8 . . . . . . . . . . . . . . . . . . 14 Rewire 166 | . . . . . . 53 . 1 . . . 54 . 29 15 . . . . 1 . 6 . . 2 . . 1 4 Trap 1 | . . 1 . . . . . . . . . . . . . . . . . . . . . . . . . . . Miscellaneous 111 | . . . . . . . . . . . . . . . 16 8 . . . . . 35 3 . . . . 48 1 Route ------- -11/Scrapyard -10/Materials (discovered 6 exits: *Mat x3 / [*Min x2] / [*Sub]) -10/Mines (discovered 3 exits: *Mat x2 / [*Sub]) -9/Materials (discovered 3 exits: *Mat x2 / *Min) -9/Mines (discovered 2 exits: *Mat x2) -8/Materials (discovered 5 exits: *Fac x3 / *Sto / Gar) -8/Garrison (discovered 3 exits: *Mat x3) -8/Materials (discovered 3 exits: *Sto x2 / Gar) -8/Garrison (discovered 3 exits: *Fac x3) -7/Factory (discovered 4 exits: Fac / Low x2 / Gar) -7/Garrison (discovered 3 exits: *Fac x3) -6/Factory -6/Garrison (discovered 3 exits: *Fac x3) -5/Factory -5/Garrison (discovered 3 exits: *Ext x3) -5/Extension (discovered 2 exits: *Fac / *Cet) -5/Cetus (discovered 3 exits: *Fac x2 / [*Arc]) -5/Archives (discovered 2 exits: *Fac / *Hub) -5/Hub_04(d) (discovered 4 exits: *Fac x4) -4/Factory (discovered 5 exits: *Res / Upp x2 / Arm / Gar) -4/Garrison (discovered 3 exits: *Res x3) -3/Research (discovered 2 exits: *Qua x2) -3/Quarantine (discovered 2 exits: *Res / Gar) -3/Garrison (discovered 3 exits: *Res x3) -2/Research (discovered 3 exits: Tes x2 / Gar) -2/Garrison (discovered 3 exits: *Acc x3) -1/Access -1/Garrison (discovered 4 exits: [*Acc x4]) -1/Access -1/Command 0b10 Command History --------- Turn | Location | Event 7 | -11/Scrapyard | Discovered new exit (range 15) 136 | -11/Scrapyard | Entered Materials 304 | -10/Materials | Build established: Mutant 365 | -10/Materials | Discovered new exit (range 4) 413 | -10/Materials | Discovered new exit (range 14) 675 | -10/Materials | Discovered new exit (range 16) 859 | -10/Materials | Discovered new exit (range 15) 938 | -10/Materials | Discovered new exit (range 16) 993 | -10/Materials | Loaded intel: 19 trap records 997 | -10/Materials | Learned 2 Storage zone layouts 998 | -10/Materials | Learned location of 1 exit from Recycling 1013 | -10/Materials | Learned 2 Mines zone layouts 1027 | -10/Materials | Discovered new exit (range 11) 1036 | -10/Materials | Identified exit to Materials 1059 | -10/Materials | Entered Mines 1107 | -10/Mines | Learned 2 Materials zone layouts 1170 | -10/Mines | Discovered new exit (range 9) 1203 | -10/Mines | A weapon hastily lodged in a ceiling crevice suddenly fell to the ground 1229 | -10/Mines | Assembled infested the area 1234 | -10/Mines | Assisted by a Guerilla fighting off Assembled 1586 | -10/Mines | Learned location of Storage (-8) 1773 | -10/Mines | Learned location of Zion (-7) 1812 | -10/Mines | Found a hidden stash of uninstalled traps 1856 | -10/Mines | Found a Scrap Suit stashed away for nefarious purposes 2069 | -10/Mines | Assisted by bots powering up and referring to "LRC-V3" 2341 | -10/Mines | Entered Materials 2341 | -9/Materials | Accompanied by 2 allies 2341 | -9/Materials | Evolved 2 slots: Utility x1, Weapon x1 2633 | -9/Materials | Build established: Gunner 2922 | -9/Materials | Learned 4 Materials zone layouts 2939 | -9/Materials | Build established: Tank 2976 | -9/Materials | Learned Storage emergency access door positions 3021 | -9/Materials | Learned 2 Storage zone layouts 3055 | -9/Materials | Identified exit to Mines 3075 | -9/Materials | Central database locked down 3092 | -9/Materials | Learned Storage emergency access door positions 3107 | -9/Materials | Learned 2 Storage zone layouts 3129 | -9/Materials | Learned 4 Materials zone layouts 3140 | -9/Materials | Discovered new exit (range 14) 3284 | -9/Materials | Build established: Scavenger-Tank 3581 | -9/Materials | Discovered new exit (range 16) 3904 | -9/Materials | Entered Mines 3916 | -9/Mines | Identified exit to Materials 4089 | -9/Mines | Received a Rocket Launcher from a helpful Derelict 4283 | -9/Mines | Build established: Scavenger-Gunner 4573 | -9/Mines | Discovered exit to Materials (range 5) 4584 | -9/Mines | Entered Materials 4584 | -8/Materials | Evolved 2 slots: Propulsion x1, Utility x1 4585 | -8/Materials | Identified exit to Storage 4586 | -8/Materials | Identified exit to Factory 4604 | -8/Materials | Central database locked down 4870 | -8/Materials | Destroyed 7 combat bots 5243 | -8/Materials | Destroyed 7 combat bots 5506 | -8/Materials | Garrison activated, responded to threat 5591 | -8/Materials | Build established: Scavenger-Tank 5601 | -8/Materials | Identified exit to Garrison 5673 | -8/Materials | Discovered exit to Factory (range 12) 5893 | -8/Materials | Learned Factory security intel 5924 | -8/Materials | Learned Storage stockpile data 5946 | -8/Materials | Learned location of 2 exits from Factory 5959 | -8/Materials | Learned Storage trap positions 5964 | -8/Materials | Learned 2 Storage zone layouts 5965 | -8/Materials | Learned location of Lower Caves (-7) 5970 | -8/Materials | Learned Recycling recycling unit intel 5983 | -8/Materials | Learned 4 Factory zone layouts 6584 | -8/Materials | Entered Garrison 6584 | -8/Garrison | Accompanied by 1 ally 6738 | -8/Garrison | Garrison Relay disabled 6824 | -8/Garrison | Triggered checkpoint 6891 | -8/Garrison | Garrison Relay disabled 6910 | -8/Garrison | Learned Materials security intel 7196 | -8/Garrison | Triggered checkpoint 7239 | -8/Garrison | Triggered checkpoint 7290 | -8/Garrison | Core integrity fell below 50% 7319 | -8/Garrison | Lost 4 parts (1p2u1w) 7412 | -8/Garrison | Triggered checkpoint 7633 | -8/Garrison | Discovered new exit (range 12) 7778 | -8/Garrison | Triggered checkpoint 7794 | -8/Garrison | Triggered checkpoint 7831 | -8/Garrison | Discovered new exit (range 15) 7832 | -8/Garrison | Triggered checkpoint 8042 | -8/Garrison | Garrison Relay disabled 8169 | -8/Garrison | Discovered new exit (range 39) 8169 | -8/Garrison | Discovered new exit (range 30) 8169 | -8/Garrison | Discovered new exit (range 64) 8328 | -8/Garrison | Installed Relay Interface Framework 8376 | -8/Garrison | Triggered checkpoint 8413 | -8/Garrison | Garrison Relay disabled 8549 | -8/Garrison | Entered Materials 8549 | -8/Materials | Accompanied by 3 allies 8581 | -8/Materials | Central database locked down 8676 | -8/Materials | Build established: Bothacker-Tank 8717 | -8/Materials | Lost 3 allies 8796 | -8/Materials | Discovered exit to Storage (range 14) 9609 | -8/Materials | Core integrity fell below 20% 9857 | -8/Materials | Identified exit to Garrison 9857 | -8/Materials | Entered Garrison 9991 | -8/Garrison | Triggered checkpoint 10060 | -8/Garrison | Expanded RIF knowledge: Robot Detection 10080 | -8/Garrison | Garrison Relay disabled 10287 | -8/Garrison | Triggered checkpoint 10315 | -8/Garrison | Triggered checkpoint 10452 | -8/Garrison | Discovered exit to Factory (range 13) 10566 | -8/Garrison | Discovered exit to Factory (range 68) 10566 | -8/Garrison | Discovered exit to Factory (range 77) 10566 | -8/Garrison | Discovered exit to Factory (range 13) 10571 | -8/Garrison | Triggered checkpoint 10599 | -8/Garrison | Garrison Relay disabled 10833 | -8/Garrison | Triggered checkpoint 10847 | -8/Garrison | Triggered checkpoint 10898 | -8/Garrison | Expanded RIF knowledge: Alert ID Control 10950 | -8/Garrison | Garrison Relay disabled 10992 | -8/Garrison | Garrison Relay disabled 11212 | -8/Garrison | Entered Factory 11212 | -7/Factory | Accompanied by 4 allies 11212 | -7/Factory | Evolved 2 slots: Propulsion x1, Utility x1 11213 | -7/Factory | Identified exit to Lower Caves 11214 | -7/Factory | Identified exit to Factory 12445 | -7/Factory | Identified exit to Garrison 12445 | -7/Factory | Entered Garrison 12469 | -7/Garrison | Expanded RIF knowledge: Autoassimilate 12825 | -7/Garrison | Triggered checkpoint 12852 | -7/Garrison | Garrison Relay disabled 12987 | -7/Garrison | Triggered checkpoint 13035 | -7/Garrison | Triggered checkpoint 13125 | -7/Garrison | Discovered exit to Factory (range 10) 13173 | -7/Garrison | Triggered checkpoint 13203 | -7/Garrison | Triggered checkpoint 13232 | -7/Garrison | Garrison Relay disabled 13435 | -7/Garrison | Triggered checkpoint 13563 | -7/Garrison | Garrison Relay disabled 13735 | -7/Garrison | Triggered checkpoint 13837 | -7/Garrison | Discovered exit to Factory (range 15) 13955 | -7/Garrison | Triggered checkpoint 13989 | -7/Garrison | Garrison Relay disabled 14123 | -7/Garrison | Expanded RIF knowledge: Command Fork 14192 | -7/Garrison | Triggered checkpoint 14309 | -7/Garrison | Triggered checkpoint 14356 | -7/Garrison | Garrison Relay disabled 14590 | -7/Garrison | Discovered exit to Factory (range 8) 14605 | -7/Garrison | Entered Factory 14605 | -6/Factory | Accompanied by 1 ally 14605 | -6/Factory | Evolved 2 slots: Utility x2 14653 | -6/Factory | Build established: Botlord-Mutant 14955 | -6/Factory | Central database locked down 14961 | -6/Factory | Build established: Botlord-Tank 15249 | -6/Factory | Identified exit to Garrison 15396 | -6/Factory | P-60 Hacker assimilated allied Soldier 5b 15398 | -6/Factory | Entered Garrison 15398 | -6/Garrison | Accompanied by 1 ally 15546 | -6/Garrison | Triggered checkpoint 15582 | -6/Garrison | Garrison Relay disabled 15956 | -6/Garrison | Triggered checkpoint 15956 | -6/Garrison | Spotted B-75 Beast 16021 | -6/Garrison | Destroyed B-75 Beast 16037 | -6/Garrison | Lost 3 parts (1n1u1w) 16125 | -6/Garrison | Build established: Botlord-Mutant 16142 | -6/Garrison | Triggered checkpoint 16173 | -6/Garrison | Garrison Relay disabled 16179 | -6/Garrison | Lost 3 parts (1p2u) 16258 | -6/Garrison | Discovered new exit (range 11) 16296 | -6/Garrison | Triggered checkpoint 16346 | -6/Garrison | Triggered checkpoint 16449 | -6/Garrison | Garrison Relay disabled 16627 | -6/Garrison | Garrison Relay disabled 16718 | -6/Garrison | Triggered checkpoint 16817 | -6/Garrison | Garrison Relay disabled 16882 | -6/Garrison | Triggered checkpoint 16897 | -6/Garrison | Triggered checkpoint 16930 | -6/Garrison | Triggered checkpoint 17148 | -6/Garrison | Triggered checkpoint 17190 | -6/Garrison | Discovered new exit (range 46) 17190 | -6/Garrison | Discovered new exit (range 54) 17190 | -6/Garrison | Discovered new exit (range 20) 17216 | -6/Garrison | Lost 3 allies 17276 | -6/Garrison | Triggered checkpoint 17314 | -6/Garrison | Found embedded Infiltrators 17450 | -6/Garrison | Expanded RIF knowledge: Structural Interface 17529 | -6/Garrison | Garrison Relay disabled 17705 | -6/Garrison | H-XX Assembler disabled 17973 | -6/Garrison | Entered Factory 17973 | -5/Factory | Accompanied by 6 allies 17973 | -5/Factory | Evolved 2 slots: Propulsion x2 18124 | -5/Factory | Garrison activated, responded to threat 18163 | -5/Factory | Identified exit to Garrison 18163 | -5/Factory | Entered Garrison 18163 | -5/Garrison | Discovered recently destroyed garrison 18163 | -5/Garrison | Accompanied by 2 allies 18187 | -5/Garrison | Lost 4 allies 18201 | -5/Garrison | Learned Extension security intel 18344 | -5/Garrison | Garrison Relay disabled 18450 | -5/Garrison | H-XX Assembler disabled 18665 | -5/Garrison | Garrison Relay disabled 18704 | -5/Garrison | Discovered new exit (range 13) 18933 | -5/Garrison | Expanded RIF knowledge: Watcher Feeds 18957 | -5/Garrison | Discovered new exit (range 11) 18988 | -5/Garrison | Garrison Relay disabled 19265 | -5/Garrison | Garrison Relay disabled 19362 | -5/Garrison | Garrison Relay disabled 19465 | -5/Garrison | Discovered new exit (range 14) 19494 | -5/Garrison | Rewired B-86 Titan 19594 | -5/Garrison | Entered Extension 19594 | -5/Extension | Accompanied by 11 allies 19666 | -5/Extension | Rescued a captive Derelict 19667 | -5/Extension | Rescued a captive Derelict 19741 | -5/Extension | Rescued a captive Derelict 19746 | -5/Extension | Rescued a captive Derelict 19961 | -5/Extension | Rescued a captive Derelict 19962 | -5/Extension | Rescued a captive Derelict 19996 | -5/Extension | Build established: Botlord-Tank 20068 | -5/Extension | Rescued a captive Derelict 20069 | -5/Extension | Rescued a captive Derelict 20400 | -5/Extension | Build established: Commander-Tank 20503 | -5/Extension | Spotted B-75 Beast 20507 | -5/Extension | Destroyed B-75 Beast 20526 | -5/Extension | Spotted B-75 Beast 20538 | -5/Extension | Allies destroyed B-75 Beast 20597 | -5/Extension | Rescued a captive Derelict 20598 | -5/Extension | Rescued a captive Derelict 20794 | -5/Extension | First assault squad dispatched 20794 | -5/Extension | Energy Cycler disabled 20799 | -5/Extension | Rescued A7 20879 | -5/Extension | Lost 5 allies 20910 | -5/Extension | Discovered new exit (range 10) 20916 | -5/Extension | Discovered new exit (range 6) 21222 | -5/Extension | Entered Cetus 21222 | -5/Cetus | Accompanied by 31 allies (A7) 21227 | -5/Cetus | Acquired a Cetus Manufacturing Module code from A7 21251 | -5/Cetus | Spotted Cetus Guard 21251 | -5/Cetus | Spotted Cetus Guard 21255 | -5/Cetus | Allies destroyed Cetus Guard 21256 | -5/Cetus | Spotted Cetus Guard 21256 | -5/Cetus | Spotted Cetus Guard 21269 | -5/Cetus | Allies destroyed Cetus Guard 21277 | -5/Cetus | Allies destroyed Cetus Guard 21278 | -5/Cetus | Allies destroyed Cetus Guard 21293 | -5/Cetus | Discovered new exit (range 37) 21304 | -5/Cetus | Lost 5 allies 21336 | -5/Cetus | Started Cetus Manufacturing Module 21361 | -5/Cetus | Manufactured an Enhanced Grunt 21382 | -5/Cetus | Escorted A7 to Cetus Mainframe 21386 | -5/Cetus | Manufactured an Enhanced Grunt 21411 | -5/Cetus | Manufactured an Enhanced Grunt 21436 | -5/Cetus | Manufactured an Enhanced Grunt 21461 | -5/Cetus | Manufactured an Enhanced Grunt 21488 | -5/Cetus | Discovered new exit (range 16) 21526 | -5/Cetus | Spotted Cetus Guard 21526 | -5/Cetus | Spotted Cetus Guard 21527 | -5/Cetus | Destroyed Cetus Guard 21530 | -5/Cetus | Spotted Cetus Guard 21535 | -5/Cetus | Allies destroyed Cetus Guard 21535 | -5/Cetus | Allies destroyed Cetus Guard 21539 | -5/Cetus | Discovered new exit (range 16) 21547 | -5/Cetus | Met Revision 17 21811 | -5/Cetus | Entered Archives 21811 | -5/Archives | Accompanied by 29 allies (A7) 21816 | -5/Archives | Received a hacking code to weaken MAIN.C 21863 | -5/Archives | Discovered new exit (range 15) 21877 | -5/Archives | Discovered new exit (range 14) 21999 | -5/Archives | Entered Hub_04(d) 21999 | -5/Hub_04(d) | Accompanied by 26 allies 22050 | -5/Hub_04(d) | Discovered new exit (range 8) 22098 | -5/Hub_04(d) | Lost 3 allies 22237 | -5/Hub_04(d) | Discovered new exit (range 25) 22294 | -5/Hub_04(d) | Identified exit to Factory 22512 | -5/Hub_04(d) | Network Hub disabled 22529 | -5/Hub_04(d) | Spotted Lightning 22530 | -5/Hub_04(d) | Spotted Lightning 22538 | -5/Hub_04(d) | Murdered 4 allies 22538 | -5/Hub_04(d) | Spotted Lightning 22539 | -5/Hub_04(d) | Spotted Lightning 22543 | -5/Hub_04(d) | Spotted Lightning 22563 | -5/Hub_04(d) | Spotted Lightning 22571 | -5/Hub_04(d) | System corruption reached 10% 22571 | -5/Hub_04(d) | Entered Factory 22571 | -4/Factory | Evolved 2 slots: Power x1, Utility x1 22588 | -4/Factory | Lost 16 allies 22720 | -4/Factory | Discovered new exit (range 4) 22808 | -4/Factory | Identified exit to Upper Caves 22808 | -4/Factory | Identified exit to Armory 22817 | -4/Factory | Build established: Botlord-Tank 23108 | -4/Factory | Identified exit to Garrison 23171 | -4/Factory | P-80 Master assimilated allied Assassin 7a 23172 | -4/Factory | Garrison activated, responded to threat 23211 | -4/Factory | Entered Garrison 23211 | -4/Garrison | Accompanied by 1 ally 23237 | -4/Garrison | Lost 4 allies 23253 | -4/Garrison | Expanded RIF knowledge: Hotswap 23287 | -4/Garrison | Garrison Relay disabled 23309 | -4/Garrison | Triggered checkpoint 23389 | -4/Garrison | Lost 3 allies 23617 | -4/Garrison | Triggered checkpoint 23625 | -4/Garrison | Triggered checkpoint 23705 | -4/Garrison | Discovered new exit (range 12) 23851 | -4/Garrison | Triggered checkpoint 23888 | -4/Garrison | Garrison Relay disabled 24010 | -4/Garrison | Discovered new exit (range 15) 24035 | -4/Garrison | Discovered new exit (range 65) 24035 | -4/Garrison | Discovered new exit (range 7) 24035 | -4/Garrison | Discovered new exit (range 40) 24091 | -4/Garrison | Triggered checkpoint 24112 | -4/Garrison | Garrison Relay disabled 24237 | -4/Garrison | Triggered checkpoint 24312 | -4/Garrison | Garrison Relay disabled 24391 | -4/Garrison | Entered Research 24391 | -3/Research | Accompanied by 4 allies 24391 | -3/Research | Evolved 2 slots: Utility x2 24446 | -3/Research | Identified exit to Quarantine 24591 | -3/Research | Revision forces began assault on 0b10 24626 | -3/Research | Met up with Revision 17++ 24712 | -3/Research | Found Exp. Shield Generator 24721 | -3/Research | Found Exp. Thermal Defense Suite 24726 | -3/Research | Found Exp. Shield Generator 24817 | -3/Research | Spotted B-86 Titan 25039 | -3/Research | Entered Quarantine 25039 | -3/Quarantine | Accompanied by 4 allies 25046 | -3/Quarantine | Cryocooling Duct disabled 25061 | -3/Quarantine | Ambient heat levels rising (+20) 25061 | -3/Quarantine | Non-combat units ordered to evacuate 25087 | -3/Quarantine | Found Alien Artifact 25175 | -3/Quarantine | Identified exit to Garrison 25223 | -3/Quarantine | Spotted Alpha 7 25269 | -3/Quarantine | Destroyed Alpha 7 25285 | -3/Quarantine | Lost 6 allies 25303 | -3/Quarantine | Garrison activated, responded to threat 25408 | -3/Quarantine | Found Alien Launcher 25506 | -3/Quarantine | Found Alien Slashing Weapon 25580 | -3/Quarantine | System corruption reached 10% 25623 | -3/Quarantine | Lost 3 parts (1p1n1u) 25914 | -3/Quarantine | Found Alien Impact Weapon 26015 | -3/Quarantine | Discovered new exit (range 16) 26094 | -3/Quarantine | Found Alien Artifact 26130 | -3/Quarantine | Found Alien Artifact 26130 | -3/Quarantine | Identified Dimensional Node Initializer 26130 | -3/Quarantine | Initialized slip node 26135 | -3/Quarantine | Found Dimensional Node Initializer 26142 | -3/Quarantine | Found Alien Artifact 26321 | -3/Quarantine | P-80 Master assimilated allied Warden 8a 26369 | -3/Quarantine | Lost 4 parts (1p1n2u) 26724 | -3/Quarantine | Found Quantum Capacitor 26743 | -3/Quarantine | System corruption reached 30% 26843 | -3/Quarantine | Identified Core Stripper 27001 | -3/Quarantine | Entered Garrison 27081 | -3/Garrison | Garrison Relay disabled 27103 | -3/Garrison | Identified Sigix Broadsword 27224 | -3/Garrison | Spotted B-86 Titan 27239 | -3/Garrison | Triggered checkpoint 27271 | -3/Garrison | Triggered checkpoint 27310 | -3/Garrison | Lost 6 allies 27356 | -3/Garrison | Destroyed B-86 Titan 27392 | -3/Garrison | Garrison Relay disabled 27405 | -3/Garrison | Triggered checkpoint 27455 | -3/Garrison | Garrison Relay disabled 27495 | -3/Garrison | Discovered new exit (range 2) 27601 | -3/Garrison | Rewired B-86 Titan 27678 | -3/Garrison | Build established: Botlord-Mutant 27778 | -3/Garrison | Discovered new exit (range 10) 27805 | -3/Garrison | Garrison Relay disabled 27825 | -3/Garrison | Triggered checkpoint 28026 | -3/Garrison | Discovered new exit (range 14) 28037 | -3/Garrison | Triggered checkpoint 28057 | -3/Garrison | Expanded RIF knowledge: Autoassimilate 28091 | -3/Garrison | Garrison Relay disabled 28395 | -3/Garrison | Entered Research 28395 | -2/Research | Accompanied by 8 allies 28395 | -2/Research | Evolved 2 slots: Power x1, Utility x1 28497 | -2/Research | Lost 3 allies 28645 | -2/Research | First assault squad dispatched 28686 | -2/Research | Unchained authorized (DW-4LL) 28706 | -2/Research | Identified exit to Testing 28779 | -2/Research | P-80 Master assimilated allied Smith 9a 28782 | -2/Research | Garrison activated, responded to threat 28786 | -2/Research | P-80 Master assimilated allied Veteran 8h 28994 | -2/Research | DW-4LL burst out of a wall 29017 | -2/Research | Allies destroyed DW-4LL 29033 | -2/Research | Found ID Mask 29043 | -2/Research | Lost 4 allies 29330 | -2/Research | Lost 3 allies 29413 | -2/Research | Lost 3 allies 29506 | -2/Research | Lost 3 allies 29721 | -2/Research | Identified Hpw. Transdimensional Reconstructor 29721 | -2/Research | Warped through subspace 29721 | -2/Research | Spotted B-90 Cyclops 29722 | -2/Research | Identified Transdimensional Reconstructor 29722 | -2/Research | Warped through subspace 29776 | -2/Research | Spotted B-90 Cyclops 29808 | -2/Research | Found Prototype Launcher 29808 | -2/Research | Identified Ragnarok Missile Launcher 30003 | -2/Research | Found Prototype Processor 30003 | -2/Research | Identified Exp. Target Analyzer 30420 | -2/Research | Crushed by falling debris 30420 | -2/Research | System corruption reached 10% 30488 | -2/Research | ID Mask engaged 30515 | -2/Research | Lost 3 parts (1p2u) 30565 | -2/Research | Found Prototype Launcher 30565 | -2/Research | Identified Adv. Micro-nuke Launcher 30571 | -2/Research | Identified exit to Garrison 30571 | -2/Research | Entered Garrison 30621 | -2/Garrison | Triggered checkpoint 30621 | -2/Garrison | ID Mask no longer valid 30680 | -2/Garrison | Lost 3 parts (3u) 30697 | -2/Garrison | Triggered checkpoint 30737 | -2/Garrison | Garrison Relay disabled 30912 | -2/Garrison | Destroyed 8 combat bots 30927 | -2/Garrison | Found Relay Coupler [Proto] 30929 | -2/Garrison | Found Relay Coupler [Proto] 30934 | -2/Garrison | Found Relay Coupler [Proto] 30937 | -2/Garrison | Found Relay Coupler [Proto] 31074 | -2/Garrison | Triggered checkpoint 31086 | -2/Garrison | Spotted B-90 Cyclops 31116 | -2/Garrison | Allies destroyed B-90 Cyclops 31118 | -2/Garrison | Triggered checkpoint 31119 | -2/Garrison | Triggered checkpoint 31155 | -2/Garrison | Lost 5 allies 31197 | -2/Garrison | Triggered checkpoint 31311 | -2/Garrison | Garrison Relay disabled 31353 | -2/Garrison | Discovered new exit (range 10) 31501 | -2/Garrison | Triggered checkpoint 31581 | -2/Garrison | Triggered checkpoint 31602 | -2/Garrison | Garrison Relay disabled 31656 | -2/Garrison | Discovered new exit (range 11) 31737 | -2/Garrison | Triggered checkpoint 31826 | -2/Garrison | Discovered new exit (range 10) 31865 | -2/Garrison | Triggered checkpoint 31879 | -2/Garrison | Garrison Relay disabled 31917 | -2/Garrison | Discovered new exit (range 74) 31917 | -2/Garrison | Discovered new exit (range 6) 31917 | -2/Garrison | Discovered new exit (range 65) 31995 | -2/Garrison | Triggered checkpoint 32003 | -2/Garrison | Garrison Relay disabled 32022 | -2/Garrison | Expanded RIF knowledge: Program Shield 32228 | -2/Garrison | Entered Access 32228 | -1/Access | Accompanied by 14 allies 32228 | -1/Access | Evolved 2 slots: Utility x2 32427 | -1/Access | Unchained authorized (QV-33N) 32434 | -1/Access | Identified exit to Garrison 32478 | -1/Access | First assault squad dispatched 32526 | -1/Access | Garrison activated, responded to threat 32614 | -1/Access | Lost 15 allies 32628 | -1/Access | Entered Garrison 32628 | -1/Garrison | Accompanied by 4 allies 32635 | -1/Garrison | Triggered checkpoint 32750 | -1/Garrison | Triggered checkpoint 32771 | -1/Garrison | Destroyed 7 combat bots 32777 | -1/Garrison | Garrison Relay disabled 32866 | -1/Garrison | Spotted B-99 Colossus 32868 | -1/Garrison | Autoassimilated Colossus 10a with RIF 32874 | -1/Garrison | Triggered checkpoint 32882 | -1/Garrison | Triggered checkpoint 32898 | -1/Garrison | Triggered checkpoint 33014 | -1/Garrison | Expanded RIF knowledge: Threat Obfuscation 33022 | -1/Garrison | Discovered new exit (range 13) 33139 | -1/Garrison | Rescued a captive Derelict 33141 | -1/Garrison | Rescued a captive Derelict 33196 | -1/Garrison | Spotted B-99 Colossus 33224 | -1/Garrison | Allies destroyed B-99 Colossus 33232 | -1/Garrison | Found Relay Coupler [Proto] 33269 | -1/Garrison | Found Relay Coupler [Proto] 33272 | -1/Garrison | Found Relay Coupler [Proto] 33275 | -1/Garrison | Found Relay Coupler [Proto] 33348 | -1/Garrison | Triggered checkpoint 33377 | -1/Garrison | Garrison Relay disabled 33646 | -1/Garrison | Triggered checkpoint 33720 | -1/Garrison | Destroyed 16 combat bots 33726 | -1/Garrison | Discovered new exit (range 14) 33761 | -1/Garrison | Expanded RIF knowledge: Autooverride 33860 | -1/Garrison | Triggered checkpoint 33863 | -1/Garrison | Assimilated Heavy ARC 10a with formatsys_deep 33882 | -1/Garrison | Garrison Relay disabled 33972 | -1/Garrison | Triggered checkpoint 33988 | -1/Garrison | Discovered new exit (range 6) 34097 | -1/Garrison | Discovered new exit (range 11) 34124 | -1/Garrison | Triggered checkpoint 34180 | -1/Garrison | Garrison Relay disabled 34534 | -1/Garrison | Entered Access 34534 | -1/Access | Accompanied by 7 allies 34784 | -1/Access | First assault squad dispatched 34966 | -1/Access | Lost 6 allies 35334 | -1/Access | Unchained authorized (QV-33N) 35384 | -1/Access | Found Quantum Capacitor 35530 | -1/Access | Found Hellfire Missile Launcher 36003 | -1/Access | Lost 5 allies 36062 | -1/Access | Garrison activated, responded to threat 36098 | -1/Access | Lost 3 allies 36223 | -1/Access | Destroyed 7 combat bots 36346 | -1/Access | Discovered new exit (range 8) 36358 | -1/Access | Entered Command 36711 | -1/Command | Spotted Alpha 7 36711 | -1/Command | Spotted Alpha 7 36711 | -1/Command | Spotted Striker 36711 | -1/Command | Spotted Striker 36711 | -1/Command | Spotted Executioner 36711 | -1/Command | Spotted Executioner 36711 | -1/Command | Spotted Executioner 36711 | -1/Command | Spotted Executioner 36712 | -1/Command | Autoassimilated Executioner with RIF 36712 | -1/Command | Autoassimilated Executioner with RIF 36712 | -1/Command | Autoassimilated Executioner with RIF 36712 | -1/Command | Autoassimilated Executioner with RIF 36712 | -1/Command | Autoassimilated Striker with RIF 36713 | -1/Command | Spotted B-99 Colossus 36719 | -1/Command | Spotted B-99 Colossus 36719 | -1/Command | Assimilated Alpha 7 with formatsys_high 36720 | -1/Command | Assimilated Striker with formatsys_high 36738 | -1/Command | Assimilated Alpha 7 with formatsys_high 36751 | -1/Command | Allies destroyed B-99 Colossus 36788 | -1/Command | Destroyed B-99 Colossus 36796 | -1/Command | Found Prototype Processor 36806 | -1/Command | Lost 8 allies 36811 | -1/Command | Discovered new exit (range 9) 37049 | -1/Command | Spotted M Guard 37050 | -1/Command | Autoassimilated M Guard with RIF 37052 | -1/Command | Spotted M Guard 37052 | -1/Command | Spotted Combat Programmer 37052 | -1/Command | Spotted Combat Programmer 37053 | -1/Command | Autoassimilated M Guard with RIF 37067 | -1/Command | System corruption reached 10% 37078 | -1/Command | Initialized slip node 37080 | -1/Command | Destroyed Combat Programmer 37087 | -1/Command | Destroyed Combat Programmer 37087 | -1/Command | All MAIN.C guards destroyed 37153 | -1/Command | Identified Exp. Targeting Computer 37254 | -1/Command | Met MAIN.C 37256 | -1/Command | System corruption reached 30% 37315 | -1/Command | Lost 4 parts (1n3u) 37357 | -1/Command | Released all parts (17) 37379 | -1/Command | Interfaced with 0b10 Conduit 37379 | *** | Assimilated 0b10! Last Messages --------------- 37357_ Released Rnf. Quantum Reactor. 37357_ Released Huge Storage Unit. 37357_ Released Rnf. Antimatter Reactor. 37357_ Released Relay Coupler [Proto]. 37357_ Released Relay Coupler [NC]. 37357_ Released Relay Coupler [Proto]. 37357_ Released Arm. Heavy Treads. 37357_ Released Centrium Light Armor Plating. 37357_ Centrium Light Armor Plating crushed and broken. 37357_ Released Exp. Energy Well. 37357_ Exp. Energy Well crushed and broken. 37367_ ALERT: Potential suspicious activity detected, Programmers report to Command Zone 2V. 37369_ System corrupted: Energy discharge (-27). 37379_ Interfacing with system... 37379_ Overriding active MAIN.C lock. [Achievement: MAIN.CPP] [Achievement: One Last FU] Map ----- +----------------------------------------------------+ | ########################################### | | ########################################### | | ########################################### | | ########################################### | | ########################################### | | ################################################## | | ## """"" ####################################### | | ## ""T"" ####################################### | | ## ####################################### | | ## ####################################### | | ## ####################################### | | # ####################################### | | ## ####################################### | | ## ####################################### | | ########+######################################### | | # ######""""""" """" ############# | | + ######"" "" ############# | | # ######""""" "" ############# | | # ######""""""""""" / | | ####+## ######" " """ ; | | ######"" """""" ; | | ######"" """""" ############# | | ###### " """""" ############# | | ###### " "" ############# | | ###### " " ""############# | | #""###"""""""""@ """""""############# | | "" "###"" """""""""############# | | "" "### """""""""""############# | | "" #""### " " " " ############# | | "" ###### " " " " ############# | | """ " " " """" " ############# | | """ """ " " """" ############# | | """ " " " " ############# | | ##### """""""""" " ############# | | ##### " """ " """"""""############# | | ##### """ " " " ############# | | ####################################### | | ####################################### | | ####################################### | | ####################################### | | ####################################### | | ####################################### | | ####################################### | | ################################################## | | ############################################ | | ############################################ | | ############################################ | | " ############################################ | | "" ############################################ | | "" ############################################ | +----------------------------------------------------+ Best States ------------- Heat Dissipation 121 Coolant Potential 100 Energy Generation 77 Energy Capacity 1425 Matter Stores 300 Matter Capacity 300 Sight Range 16 Terrain Scan Density 10 Jamming Range 14 Power Amplification 30 Additional Mass Support 12 Armor Coverage 1200 Resistance: KI 20 Resistance: TH 30 Core Shielding 30 Weapon Shielding 66 Point Defense Rating 240 Weapon Cycling 25 Evasion (%) 50 Targeting Accuracy 12 Core Analysis 6 Recoil Reduction 6 Offensive Hacking 10 Relay Coupler Types 6 Relay Coupler Value 122 Item Schematics ----------------- Huge Storage Unit | -9/Materials | Scanalyzed Enh. Autogun | -8/Materials | Scanalyzed Plasma Cutter | -7/Factory | Scanalyzed Robot Schematics ------------------ None Fabricated ------------ Nothing Repaired ---------- Nothing Studied --------- Assault Rifle | -9/Materials | Hacked Lgt. Treads | -9/Materials | Hacked Mni. Grenade Launcher | -9/Materials | Hacked Hvy. Assault Rifle | -8/Materials | Hacked Rocket Launcher | -8/Materials | Hacked Missile Launcher | -8/Materials | Hacked Hvy. Flak Cannon | -6/Factory | Hacked HERF Cannon | -3/Quarantine | Hacked Hyp. Railgun | -3/Quarantine | Hacked Adv. Remote Datajack | -3/Quarantine | Hacked Com. HERF Cannon | -2/Research | Hacked Alien Tech Used ----------------- Dimensional Node Initializer Core Stripper Sigix Broadsword High-powered Transdimensional Reconstructor Transdimensional Reconstructor Achievements -------------- Deep Understanding MAIN.CPP One Last FU Powerful Protocols Watcher Gambling Zeroed Repercussions Challenges ------------ None Game ------ Seed AlertSystemMapper Manual? 0 Play Time 06:16:45 Cumulative 597.8 hours Start 2025.11.22 @ 13:10:14 End 2025.11.25 @ 02:08:04 Sessions 5 Manual Loads 0 Difficulty Rogue Special Mode None Game No. 310 Rogue 310 Adventurer 0 Explorer 0 Win Type 4 Total 29 Types 14/2/7/1/1/0/1/1/1/1 Lore% 94 Gallery% 90 Achievement% 83 Wizard Run 0 Options --------- Layout 2 ASCII 0 Keyboard 1 Movement Vi Keybinds 0 Fullscreen 1 Font 28/Terminus Map View 50x52 Zoom Use 0% Tactical HUD 1 Map Filters NONE Filters NONE Steam 1 RUN: c376e0d6-4d28-4e34-8c5e-d41582255828